Workbook

Sheet شهادة
AR1: =MAX(مرجع) -> 10 | AS1: =MAX(مرجع)+3 -> 13
B2: إدارة كفر صقر التعليمية | D2: نتيجة امتحان ( الدور الثانى ) | P2: لجنة النظام والمراقبة | AS2: =AS1/4 -> 3.25
A3: =IF(AR1=0,"",$AS$4*4-3) -> 1 | B3: مدرسة كفر صقر الثانوية الزراعية | D3: للصف الأول الثانوى الزراعى للعام الدراسى 2018 / 2019م
B4: رقم الجلوس | C4: الاســــــــــم | D4: =الرصد!FA5 -> اللغة العربية | E4: =الرصد!FB5 -> اللغة الإنجليزية | F4: =الرصد!FC5 -> حاسب آلى | G4: =الرصد!FD5 -> محاصيل الحقل | H4: =الرصد!FE5 -> بيولوجى | I4: =الرصد!FF5 -> ألبـــــــان | J4: =الرصد!FG5 -> تربية نحل | K4: =الرصد!FH5 -> اقتصاد زراعى | L4: =الرصد!FI5 -> إرشاد زراعى | M4: =الرصد!FJ5 -> فيزياء | N4: =الرصد!FK5 -> كيمياء | O4: =الرصد!FL5 -> وسائل تعليمية | P4: =الرصد!FM5 -> عهد ومخازن | Q4: =الرصد!FN5 -> أمن وقائى | R4: =الرصد!FO5 -> ورش وصيانة | S4: =الرصد!FP5 -> المجموع | T4: =الرصد!FQ5 -> التربية الدينية | AS4: 1
A5: =IF($A3 ="","",VLOOKUP($A3,بيانات1,50,0)) -> ناجح | B5: =IF(A3 ="","",VLOOKUP(A3,بيانات1,3,0)) -> 501 | C5: =IF(A3 ="","",VLOOKUP(A3,بيانات1,4,0)) -> اسماء عوض ابراهيم احمد زغلول | D5: =الرصد!FA7 -> 50 | E5: =الرصد!FB7 -> 40 | F5: =الرصد!FC7 -> 20 | G5: =الرصد!FD7 -> 40 | H5: =الرصد!FE7 -> 30 | I5: =الرصد!FF7 -> 40 | J5: =الرصد!FG7 -> 30 | K5: =الرصد!FH7 -> 40 | L5: =الرصد!FI7 -> 40 | M5: =الرصد!FJ7 -> 40 | N5: =الرصد!FK7 -> 40 | O5: =الرصد!FL7 -> 40 | P5: =الرصد!FM7 -> 40 | Q5: =الرصد!FN7 -> 20 | R5: =الرصد!FO7 -> 40 | S5: =الرصد!FP7 -> 550 | T5: =الرصد!FQ7 -> 20 | AA5: =IF($A3="","",IF(D7="غ",D$4,IF(D7<D$6,D$4,""))) ->  | AB5: =IF($A3="","",IF(E7="غ",E$4,IF(E7<E$6,E$4,""))) ->  | AS5: =$AS$2 -> 3.25
D6: =الرصد!FA8 -> 25 | E6: =الرصد!FB8 -> 20 | F6: =الرصد!FC8 -> 10 | G6: =الرصد!FD8 -> 20 | H6: =الرصد!FE8 -> 15 | I6: =الرصد!FF8 -> 20 | J6: =الرصد!FG8 -> 15 | K6: =الرصد!FH8 -> 20 | L6: =الرصد!FI8 -> 20 | M6: =الرصد!FJ8 -> 20 | N6: =الرصد!FK8 -> 20 | O6: =الرصد!FL8 -> 20 | P6: =الرصد!FM8 -> 20 | Q6: =الرصد!FN8 -> 10 | R6: =الرصد!FO8 -> 20 | S6: =الرصد!FP8 -> 275 | T6: =الرصد!FQ8 -> 10
D7: =IF($A3 ="","",VLOOKUP($A3,بيانات1,17,0)) -> 25 | E7: =IF($A3 ="","",VLOOKUP($A3,بيانات1,18,0)) -> 20 | F7: =IF($A3 ="","",VLOOKUP($A3,بيانات1,19,0)) -> 10 | G7: =IF($A3 ="","",VLOOKUP($A3,بيانات1,22,0)) -> 20 | H7: =IF($A3 ="","",VLOOKUP($A3,بيانات1,25,0)) -> 15 | I7: =IF($A3 ="","",VLOOKUP($A3,بيانات1,28,0)) -> 21 | J7: =IF($A3 ="","",VLOOKUP($A3,بيانات1,31,0)) -> 36 | K7: =IF($A3 ="","",VLOOKUP($A3,بيانات1,32,0)) -> 20 | L7: =IF($A3 ="","",VLOOKUP($A3,بيانات1,33,0)) -> 20 | M7: =IF($A3 ="","",VLOOKUP($A3,بيانات1,36,0)) -> 30 | N7: =IF($A3 ="","",VLOOKUP($A3,بيانات1,39,0)) -> 20 | O7: =IF($A3 ="","",VLOOKUP($A3,بيانات1,42,0)) -> 20 | P7: =IF($A3 ="","",VLOOKUP($A3,بيانات1,45,0)) -> 20 | Q7: =IF($A3 ="","",VLOOKUP($A3,بيانات1,46,0)) -> 10 | R7: =IF($A3 ="","",VLOOKUP($A3,بيانات1,47,0)) -> 20 | S7: =IF($A3 ="","",VLOOKUP($A3,بيانات1,48,0)) -> 307 | T7: =IF($A3 ="","",VLOOKUP($A3,بيانات1,49,0)) -> 10
B9: رئيس لجنة النظام والمراقبة | D9: =IF(A5="ناجح",CONCATENATE(" نتيجة الطالب ",A5," بمجموع ",S7," ومنقول للصف الثانى "),IF(A5="راسب",CONCATENATE(" مواد الرسوب ",AA5," ",AB5," ",AC5," ",AD5," ",AE5," ",AF5," ",AG5," ",AH5," ",AI5," ",AJ5," ",AK5," ",AM5," ",AN5," ",AO5," ",AP5,AQ5))) -> نتيجة الطالب ناجح بمجموع 307 ومنقول للصف الثانى | P9: يعتمد ،مدير الإدارة بالمدرسة
D11: كتبه : احمد شوقى راجع الكتابة : محمد سعد أملاه : محمد سعد راجع الإملاء : احمد شوقى
B15: إدارة كفر صقر التعليمية | D15: =$D$2 -> نتيجة امتحان ( الدور الثانى ) | P15: لجنة النظام والمراقبة
A16: =IF(A3>=$AR$1,"",A3+1) -> 2 | B16: مدرسة كفر صقر الثانوية الزراعية | D16: =$D$3 -> للصف الأول الثانوى الزراعى للعام الدراسى 2018 / 2019م
B17: رقم الجلوس | C17: الاســــــــــم | D17: اللغة العربية | E17: اللغة الإنجليزية | F17: حاسب آلى | G17: محاصيل الحقل | H17: بيولوجى | I17: ألبـــــــان | J17: تربية نحل | K17: اقتصاد زراعى | L17: إرشاد زراعى | M17: فيزياء | N17: كيمياء | O17: وسائل تعليمية | P17: عهد ومخازن | Q17: أمن وقائى | R17: ورش وصيانة | S17: المجموع | T17: التربية الدينية
A18: =IF($A16 ="","",VLOOKUP($A16,بيانات1,50,0)) -> راسب | B18: =IF(A16 ="","",VLOOKUP(A16,بيانات1,3,0)) -> 502 | C18: =IF(A16 ="","",VLOOKUP(A16,بيانات1,4,0)) -> بسمه محمد عبد اللطيف السعيد | D18: 50 | E18: 40 | F18: 20 | G18: 40 | H18: 30 | I18: 40 | J18: 30 | K18: 40 | L18: 40 | M18: 40 | N18: 40 | O18: 40 | P18: 40 | Q18: 20 | R18: 40 | S18: 550 | T18: 20 | AA18: =IF($A16="","",IF(D20="غ",D$4,IF(D20<D$6,D$4,""))) -> اللغة العربية | AB18: =IF($A16="","",IF(E20="غ",E$4,IF(E20<E$6,E$4,""))) -> اللغة الإنجليزية | AC18: =IF($A16="","",IF(F20="غ",F$4,IF(F20<F$6,F$4,""))) -> حاسب آلى | AD18: =IF($A16="","",IF(G20="غ",G$4,IF(G20<G$6,G$4,""))) -> محاصيل الحقل | AE18: =IF($A16="","",IF(H20="غ",H$4,IF(H20<H$6,H$4,""))) -> بيولوجى | AF18: =IF($A16="","",IF(I20="غ",I$4,IF(I20<I$6,I$4,""))) ->  | AG18: =IF($A16="","",IF(J20="غ",J$4,IF(J20<J$6,J$4,""))) ->  | AH18: =IF($A16="","",IF(K20="غ",K$4,IF(K20<K$6,K$4,""))) -> اقتصاد زراعى | AI18: =IF($A16="","",IF(L20="غ",L$4,IF(L20<L$6,L$4,""))) -> إرشاد زراعى | AJ18: =IF($A16="","",IF(M20="غ",M$4,IF(M20<M$6,M$4,""))) ->  | AK18: =IF($A16="","",IF(N20="غ",N$4,IF(N20<N$6,N$4,""))) -> كيمياء | AL18: =IF($A16="","",IF(O20="غ",O$4,IF(O20<O$6,O$4,""))) -> وسائل تعليمية | AM18: =IF($A16="","",IF(P20="غ",P$4,IF(P20<P$6,P$4,""))) -> عهد ومخازن | AN18: =IF($A16="","",IF(Q20="غ",Q$4,IF(Q20<Q$6,Q$4,""))) -> أمن وقائى | AO18: =IF($A16="","",IF(R20="غ",R$4,IF(R20<R$6,R$4,""))) -> ورش وصيانة | AP18: =IF($A16="","",IF(S20="غ",S$4,IF(S20<S$6,S$4,""))) ->  | AQ18: =IF($A16="","",IF(T20="غ",T$4,IF(T20<T$6,T$4,""))) -> التربية الدينية
D19: 25 | E19: 20 | F19: 10 | G19: 20 | H19: 15 | I19: 20 | J19: 15 | K19: 20 | L19: 20 | M19: 20 | N19: 20 | O19: 20 | P19: 20 | Q19: 10 | R19: 20 | S19: 275 | T19: 10
D20: =IF($A16 ="","",VLOOKUP($A16,بيانات1,17,0)) -> 20 | E20: =IF($A16 ="","",VLOOKUP($A16,بيانات1,18,0)) -> 17.5 | F20: =IF($A16 ="","",VLOOKUP($A16,بيانات1,19,0)) -> 6.5 | G20: =IF($A16 ="","",VLOOKUP($A16,بيانات1,22,0)) -> 18 | H20: =IF($A16 ="","",VLOOKUP($A16,بيانات1,25,0)) -> 14.5 | I20: =IF($A16 ="","",VLOOKUP($A16,بيانات1,28,0)) -> 21 | J20: =IF($A16 ="","",VLOOKUP($A16,بيانات1,31,0)) -> 43 | K20: =IF($A16 ="","",VLOOKUP($A16,بيانات1,32,0)) -> 17.5 | L20: =IF($A16 ="","",VLOOKUP($A16,بيانات1,33,0)) -> 15 | M20: =IF($A16 ="","",VLOOKUP($A16,بيانات1,36,0)) -> 23 | N20: =IF($A16 ="","",VLOOKUP($A16,بيانات1,39,0)) -> 18 | O20: =IF($A16 ="","",VLOOKUP($A16,بيانات1,42,0)) -> 18 | P20: =IF($A16 ="","",VLOOKUP($A16,بيانات1,45,0)) -> 18 | Q20: =IF($A16 ="","",VLOOKUP($A16,بيانات1,46,0)) -> 7.5 | R20: =IF($A16 ="","",VLOOKUP($A16,بيانات1,47,0)) -> 18 | S20: =IF($A16 ="","",VLOOKUP($A16,بيانات1,48,0)) -> 275.5 | T20: =IF($A16 ="","",VLOOKUP($A16,بيانات1,49,0)) -> 8.5
B22: رئيس لجنة النظام والمراقبة | D22: =IF(A18="ناجح",CONCATENATE(" نتيجة الطالب ",A18," بمجموع ",S20," ومنقول للصف الثانى "),IF(A18="راسب",CONCATENATE(" مواد الرسوب ",AA18," ",AB18," ",AC18," ",AD18," ",AE18," ",AF18," ",AG18," ",AH18," ",AI18," ",AJ18," ",AK18," ",AM18," ",AN18," ",AO18," ",AP18,AQ18))) -> مواد الرسوب اللغة العربية اللغة الإنجليزية حاسب آلى محاصيل الحقل بيولوجى اقتصاد زراعى إرشاد زراعى كيمياء عهد ومخازن أمن وقائى ورش وصيانة التربية الدينية | P22: يعتمد ،مدير الإدارة بالمدرسة
D24: كتبه : احمد شوقى راجع الكتابة : محمد سعد أملاه : محمد سعد راجع الإملاء : احمد شوقى
B28: إدارة كفر صقر التعليمية | D28: =$D$2 -> نتيجة امتحان ( الدور الثانى ) | P28: لجنة النظام والمراقبة
A29: =IF(A16>=$AR$1,"",A16+1) -> 3 | B29: مدرسة كفر صقر الثانوية الزراعية | D29: =$D$3 -> للصف الأول الثانوى الزراعى للعام الدراسى 2018 / 2019م
B30: رقم الجلوس | C30: الاســــــــــم | D30: اللغة العربية | E30: اللغة الإنجليزية | F30: حاسب آلى | G30: محاصيل الحقل | H30: بيولوجى | I30: ألبـــــــان | J30: تربية نحل | K30: اقتصاد زراعى | L30: إرشاد زراعى | M30: فيزياء | N30: كيمياء | O30: وسائل تعليمية | P30: عهد ومخازن | Q30: أمن وقائى | R30: ورش وصيانة | S30: المجموع | T30: التربية الدينية
A31: =IF($A29 ="","",VLOOKUP($A29,بيانات1,50,0)) -> ناجح | B31: =IF(A29 ="","",VLOOKUP(A29,بيانات1,3,0)) -> 503 | C31: =IF(A29 ="","",VLOOKUP(A29,بيانات1,4,0)) -> ضحى مصطفى عبد الهادى ابراهيم | D31: 50 | E31: 40 | F31: 20 | G31: 40 | H31: 30 | I31: 40 | J31: 30 | K31: 40 | L31: 40 | M31: 40 | N31: 40 | O31: 40 | P31: 40 | Q31: 20 | R31: 40 | S31: 550 | T31: 20 | AA31: =IF($A29="","",IF(D33="غ",D$4,IF(D33<D$6,D$4,""))) ->  | AB31: =IF($A29="","",IF(E33="غ",E$4,IF(E33<E$6,E$4,""))) ->  | AC31: =IF($A29="","",IF(F33="غ",F$4,IF(F33<F$6,F$4,""))) ->  | AD31: =IF($A29="","",IF(G33="غ",G$4,IF(G33<G$6,G$4,""))) ->  | AE31: =IF($A29="","",IF(H33="غ",H$4,IF(H33<H$6,H$4,""))) ->  | AF31: =IF($A29="","",IF(I33="غ",I$4,IF(I33<I$6,I$4,""))) ->  | AG31: =IF($A29="","",IF(J33="غ",J$4,IF(J33<J$6,J$4,""))) ->  | AH31: =IF($A29="","",IF(K33="غ",K$4,IF(K33<K$6,K$4,""))) ->  | AI31: =IF($A29="","",IF(L33="غ",L$4,IF(L33<L$6,L$4,""))) ->  | AJ31: =IF($A29="","",IF(M33="غ",M$4,IF(M33<M$6,M$4,""))) ->  | AK31: =IF($A29="","",IF(N33="غ",N$4,IF(N33<N$6,N$4,""))) ->  | AL31: =IF($A29="","",IF(O33="غ",O$4,IF(O33<O$6,O$4,""))) ->  | AM31: =IF($A29="","",IF(P33="غ",P$4,IF(P33<P$6,P$4,""))) ->  | AN31: =IF($A29="","",IF(Q33="غ",Q$4,IF(Q33<Q$6,Q$4,""))) ->  | AO31: =IF($A29="","",IF(R33="غ",R$4,IF(R33<R$6,R$4,""))) ->  | AP31: =IF($A29="","",IF(S33="غ",S$4,IF(S33<S$6,S$4,""))) ->  | AQ31: =IF($A29="","",IF(T33="غ",T$4,IF(T33<T$6,T$4,""))) -> 
D32: 25 | E32: 20 | F32: 10 | G32: 20 | H32: 15 | I32: 20 | J32: 15 | K32: 20 | L32: 20 | M32: 20 | N32: 20 | O32: 20 | P32: 20 | Q32: 10 | R32: 20 | S32: 275 | T32: 10
D33: =IF($A29 ="","",VLOOKUP($A29,بيانات1,17,0)) -> 50 | E33: =IF($A29 ="","",VLOOKUP($A29,بيانات1,18,0)) -> 40 | F33: =IF($A29 ="","",VLOOKUP($A29,بيانات1,19,0)) -> 20 | G33: =IF($A29 ="","",VLOOKUP($A29,بيانات1,22,0)) -> 40 | H33: =IF($A29 ="","",VLOOKUP($A29,بيانات1,25,0)) -> 30 | I33: =IF($A29 ="","",VLOOKUP($A29,بيانات1,28,0)) -> 40 | J33: =IF($A29 ="","",VLOOKUP($A29,بيانات1,31,0)) -> 30 | K33: =IF($A29 ="","",VLOOKUP($A29,بيانات1,32,0)) -> 40 | L33: =IF($A29 ="","",VLOOKUP($A29,بيانات1,33,0)) -> 40 | M33: =IF($A29 ="","",VLOOKUP($A29,بيانات1,36,0)) -> 60 | N33: =IF($A29 ="","",VLOOKUP($A29,بيانات1,39,0)) -> 40 | O33: =IF($A29 ="","",VLOOKUP($A29,بيانات1,42,0)) -> 40 | P33: =IF($A29 ="","",VLOOKUP($A29,بيانات1,45,0)) -> 40 | Q33: =IF($A29 ="","",VLOOKUP($A29,بيانات1,46,0)) -> 20 | R33: =IF($A29 ="","",VLOOKUP($A29,بيانات1,47,0)) -> 40 | S33: =IF($A29 ="","",VLOOKUP($A29,بيانات1,48,0)) -> 570 | T33: =IF($A29 ="","",VLOOKUP($A29,بيانات1,49,0)) -> 20
B35: رئيس لجنة النظام والمراقبة | D35: =IF(A31="ناجح",CONCATENATE(" نتيجة الطالب ",A31," بمجموع ",S33," ومنقول للصف الثانى "),IF(A31="راسب",CONCATENATE(" مواد الرسوب ",AA31," ",AB31," ",AC31," ",AD31," ",AE31," ",AF31," ",AG31," ",AH31," ",AI31," ",AJ31," ",AK31," ",AM31," ",AN31," ",AO31," ",AP31,AQ31))) -> نتيجة الطالب ناجح بمجموع 570 ومنقول للصف الثانى | P35: يعتمد ،مدير الإدارة بالمدرسة
D37: كتبه : احمد شوقى راجع الكتابة : محمد سعد أملاه : محمد سعد راجع الإملاء : احمد شوقى
B41: إدارة كفر صقر التعليمية | D41: =$D$2 -> نتيجة امتحان ( الدور الثانى ) | P41: لجنة النظام والمراقبة
A42: =IF(A29>=$AR$1,"",A29+1) -> 4 | B42: مدرسة كفر صقر الثانوية الزراعية | D42: =$D$3 -> للصف الأول الثانوى الزراعى للعام الدراسى 2018 / 2019م
B43: رقم الجلوس | C43: الاســــــــــم | D43: اللغة العربية | E43: اللغة الإنجليزية | F43: حاسب آلى | G43: محاصيل الحقل | H43: بيولوجى | I43: ألبـــــــان | J43: تربية نحل | K43: اقتصاد زراعى | L43: إرشاد زراعى | M43: فيزياء | N43: كيمياء | O43: وسائل تعليمية | P43: عهد ومخازن | Q43: أمن وقائى | R43: ورش وصيانة | S43: المجموع | T43: التربية الدينية
A44: =IF($A42 ="","",VLOOKUP($A42,بيانات1,50,0)) -> راسب | B44: =IF(A42 ="","",VLOOKUP(A42,بيانات1,3,0)) -> 504 | C44: =IF(A42 ="","",VLOOKUP(A42,بيانات1,4,0)) -> اسلام محمد عاشور احمد محمد | D44: 50 | E44: 40 | F44: 20 | G44: 40 | H44: 30 | I44: 40 | J44: 30 | K44: 40 | L44: 40 | M44: 40 | N44: 40 | O44: 40 | P44: 40 | Q44: 20 | R44: 40 | S44: 550 | T44: 20 | AA44: =IF($A42="","",IF(D46="غ",D$4,IF(D46<D$6,D$4,""))) -> اللغة العربية | AB44: =IF($A42="","",IF(E46="غ",E$4,IF(E46<E$6,E$4,""))) -> اللغة الإنجليزية | AC44: =IF($A42="","",IF(F46="غ",F$4,IF(F46<F$6,F$4,""))) -> حاسب آلى | AD44: =IF($A42="","",IF(G46="غ",G$4,IF(G46<G$6,G$4,""))) -> محاصيل الحقل | AE44: =IF($A42="","",IF(H46="غ",H$4,IF(H46<H$6,H$4,""))) -> بيولوجى | AF44: =IF($A42="","",IF(I46="غ",I$4,IF(I46<I$6,I$4,""))) ->  | AG44: =IF($A42="","",IF(J46="غ",J$4,IF(J46<J$6,J$4,""))) ->  | AH44: =IF($A42="","",IF(K46="غ",K$4,IF(K46<K$6,K$4,""))) -> اقتصاد زراعى | AI44: =IF($A42="","",IF(L46="غ",L$4,IF(L46<L$6,L$4,""))) ->  | AJ44: =IF($A42="","",IF(M46="غ",M$4,IF(M46<M$6,M$4,""))) ->  | AK44: =IF($A42="","",IF(N46="غ",N$4,IF(N46<N$6,N$4,""))) -> كيمياء | AL44: =IF($A42="","",IF(O46="غ",O$4,IF(O46<O$6,O$4,""))) -> وسائل تعليمية | AM44: =IF($A42="","",IF(P46="غ",P$4,IF(P46<P$6,P$4,""))) -> عهد ومخازن | AN44: =IF($A42="","",IF(Q46="غ",Q$4,IF(Q46<Q$6,Q$4,""))) -> أمن وقائى | AO44: =IF($A42="","",IF(R46="غ",R$4,IF(R46<R$6,R$4,""))) ->  | AP44: =IF($A42="","",IF(S46="غ",S$4,IF(S46<S$6,S$4,""))) ->  | AQ44: =IF($A42="","",IF(T46="غ",T$4,IF(T46<T$6,T$4,""))) -> التربية الدينية
D45: 25 | E45: 20 | F45: 10 | G45: 20 | H45: 15 | I45: 20 | J45: 15 | K45: 20 | L45: 20 | M45: 20 | N45: 20 | O45: 20 | P45: 20 | Q45: 10 | R45: 20 | S45: 275 | T45: 10
D46: =IF($A42 ="","",VLOOKUP($A42,بيانات1,17,0)) -> 20 | E46: =IF($A42 ="","",VLOOKUP($A42,بيانات1,18,0)) -> 19 | F46: =IF($A42 ="","",VLOOKUP($A42,بيانات1,19,0)) -> 9 | G46: =IF($A42 ="","",VLOOKUP($A42,بيانات1,22,0)) -> 18 | H46: =IF($A42 ="","",VLOOKUP($A42,بيانات1,25,0)) -> 14.5 | I46: =IF($A42 ="","",VLOOKUP($A42,بيانات1,28,0)) -> 20 | J46: =IF($A42 ="","",VLOOKUP($A42,بيانات1,31,0)) -> 34 | K46: =IF($A42 ="","",VLOOKUP($A42,بيانات1,32,0)) -> 19 | L46: =IF($A42 ="","",VLOOKUP($A42,بيانات1,33,0)) -> 25 | M46: =IF($A42 ="","",VLOOKUP($A42,بيانات1,36,0)) -> 26 | N46: =IF($A42 ="","",VLOOKUP($A42,بيانات1,39,0)) -> 18 | O46: =IF($A42 ="","",VLOOKUP($A42,بيانات1,42,0)) -> 18 | P46: =IF($A42 ="","",VLOOKUP($A42,بيانات1,45,0)) -> 18 | Q46: =IF($A42 ="","",VLOOKUP($A42,بيانات1,46,0)) -> غ | R46: =IF($A42 ="","",VLOOKUP($A42,بيانات1,47,0)) -> 20 | S46: =IF($A42 ="","",VLOOKUP($A42,بيانات1,48,0)) -> 278.5 | T46: =IF($A42 ="","",VLOOKUP($A42,بيانات1,49,0)) -> 1
B48: رئيس لجنة النظام والمراقبة | D48: =IF(A44="ناجح",CONCATENATE(" نتيجة الطالب ",A44," بمجموع ",S46," ومنقول للصف الثانى "),IF(A44="راسب",CONCATENATE(" مواد الرسوب ",AA44," ",AB44," ",AC44," ",AD44," ",AE44," ",AF44," ",AG44," ",AH44," ",AI44," ",AJ44," ",AK44," ",AM44," ",AN44," ",AO44," ",AP44,AQ44))) -> مواد الرسوب اللغة العربية اللغة الإنجليزية حاسب آلى محاصيل الحقل بيولوجى اقتصاد زراعى كيمياء عهد ومخازن أمن وقائى التربية الدينية | P48: يعتمد ،مدير الإدارة بالمدرسة
D50: كتبه : احمد شوقى راجع الكتابة : محمد سعد أملاه : محمد سعد راجع الإملاء : احمد شوقى

Sheet الرصد
A1: محافظة الشرقية | G1: =SUMPRODUCT((الرصد!$BS$9:$BS$1000="عمال")*($AW$9:$AW$1000="ناجح")) -> 1 | I1: عدد المتقدميين | K1: =SUM(K2:K3) -> 10
A2: مديرية التربية والتعليم | G2: =SUMPRODUCT((الرصد!$BS$9:$BS$1000="عمال")*($AW$9:$AW$1000="راسب")) -> 3 | I2: عدد البنون | K2: =COUNTIF($D$9:$D$1000,"ذكر") -> 7
A3: إدارة كفر صقر التعليمية | G3: =SUMPRODUCT((الرصد!$BS$9:$BS$1000="منتظم")*($AW$9:$AW$1000="ناجح")) -> 1 | I3: عدد البنات | K3: =COUNTIF($D$9:$D$1000,"انثى") -> 3
A4: مدرسة كفر صقر الثانوية الزراعية | G4: =SUMPRODUCT((الرصد!$BS$9:$BS$1000="منتظم")*($AW$9:$AW$1000="راسب")) -> 5 | AX4: نتيجة الطالب
A5: م | B5: رقم الجلوس | C5: الاســــــــــــــــــــم | D5: النوع | E5: حالة القيد | F5: الرقم القومى | H5: تاريخ الميلاد | K5: السن فى أول أكتوبر | N5: الديانة | O5: الجنسية | P5: اللغة العربية | Q5: اللغة الإنجليزية | R5: حاسب آلى | S5: محاصيل الحقل | V5: بيولوجى | Y5: ألبـــــــان | AB5: تربية نحل | AE5: اقتصاد زراعى | AF5: إرشاد زراعى | AG5: فيزياء | AJ5: كيمياء | AM5: وسائل تعليمية | AP5: عهد ومخازن | AS5: أمن وقائى | AT5: ورش وصيانة | AU5: المجموع | AV5: التربية الدينية | AW5: نتيجة الطالب | AX5: مـــــــــــــــــواد الرســـــــــــــــــــــــــــــــوب | FA5: =P5 -> اللغة العربية | FB5: =Q5 -> اللغة الإنجليزية | FC5: =R5 -> حاسب آلى | FD5: =S5 -> محاصيل الحقل | FE5: =V5 -> بيولوجى | FF5: =Y5 -> ألبـــــــان | FG5: =AB5 -> تربية نحل | FH5: =AE5 -> اقتصاد زراعى | FI5: =AF5 -> إرشاد زراعى | FJ5: =AG5 -> فيزياء | FK5: =AJ5 -> كيمياء | FL5: =AM5 -> وسائل تعليمية | FM5: =AP5 -> عهد ومخازن | FN5: =AS5 -> أمن وقائى | FO5: =AT5 -> ورش وصيانة | FP5: =AU5 -> المجموع | FQ5: =AV5 -> التربية الدينية
S6: عملى | T6: نظرى | U6: مجموع | V6: عملى | W6: نظرى | X6: مجموع | Y6: عملى | Z6: نظرى | AA6: مجموع | AB6: عملى | AC6: نظرى | AD6: مجموع | AG6: عملى | AH6: نظرى | AI6: مجموع | AJ6: عملى | AK6: نظرى | AL6: مجموع | AM6: عملى | AN6: نظرى | AO6: مجموع | AP6: عملى | AQ6: نظرى | AR6: مجموع | AV6: مجموع
P7: 50 | Q7: 40 | R7: 20 | S7: 20 | T7: 20 | U7: 40 | V7: 15 | W7: 15 | X7: 30 | Y7: 20 | Z7: 20 | AA7: 40 | AB7: 15 | AC7: 15 | AD7: 30 | AE7: 40 | AF7: 40 | AG7: 30 | AH7: 30 | AI7: 40 | AJ7: 20 | AK7: 20 | AL7: 40 | AM7: 20 | AN7: 20 | AO7: 40 | AP7: 20 | AQ7: 20 | AR7: 40 | AS7: 20 | AT7: 40 | AU7: =SUM(P7,Q7,R7,U7,X7,AA7,AD7,AE7,AF7,AI7,AL7,AO7,AR7,AS7,AT7) -> 550 | AV7: 20 | FA7: =P7 -> 50 | FB7: =Q7 -> 40 | FC7: =R7 -> 20 | FD7: =U7 -> 40 | FE7: =X7 -> 30 | FF7: =AA7 -> 40 | FG7: =AD7 -> 30 | FH7: =AE7 -> 40 | FI7: =AF7 -> 40 | FJ7: =AI7 -> 40 | FK7: =AL7 -> 40 | FL7: =AO7 -> 40 | FM7: =AR7 -> 40 | FN7: =AS7 -> 20 | FO7: =AT7 -> 40 | FP7: =AU7 -> 550 | FQ7: =AV7 -> 20
H8: يوم | I8: شهر | J8: سنة | K8: يوم | L8: شهر | M8: سنة | P8: 25 | Q8: 20 | R8: 10 | S8: 10 | T8: 10 | U8: 20 | V8: 7.5 | W8: 7.5 | X8: 15 | Y8: 10 | Z8: 10 | AA8: 20 | AB8: 7.5 | AC8: 7.5 | AD8: 15 | AE8: 20 | AF8: 20 | AG8: 15 | AH8: 15 | AI8: 20 | AJ8: 10 | AK8: 10 | AL8: 20 | AM8: 10 | AN8: 10 | AO8: 20 | AP8: 10 | AQ8: 10 | AR8: 20 | AS8: 10 | AT8: 20 | AU8: =P8+Q8+R8+U8+X8+AA8+AD8+AE8+AF8+AI8+AL8+AO8+AR8+AS8+AT8 -> 275 | AV8: 10 | FA8: =FA7/2 -> 25 | FB8: =FB7/2 -> 20 | FC8: 10 | FD8: 20 | FE8: 15 | FF8: 20 | FG8: 15 | FH8: 20 | FI8: 20 | FJ8: 20 | FK8: 20 | FL8: 20 | FM8: 20 | FN8: 10 | FO8: 20 | FP8: 275 | FQ8: 10
A9: 1 | B9: 501 | C9: اسماء عوض ابراهيم احمد زغلول | D9: انثى | E9: منقول | F9: 30203011216385 | G9: 2002-03-01 | H9: 1 | I9: 3 | J9: 2002 | K9: 0 | L9: 7 | M9: 16 | O9: مصرية | P9: 25 | Q9: 20 | R9: 10 | S9: 10 | T9: 10 | U9: =IF($C9="","",SUM(S9:T9)) -> 20 | V9: 7.5 | W9: 7.5 | X9: =IF($C9="","",SUM(V9:W9)) -> 15 | Y9: 10 | Z9: 11 | AA9: =IF($C9="","",SUM(Y9:Z9)) -> 21 | AB9: 7.5 | AC9: 28.5 | AD9: =IF($C9="","",SUM(AB9:AC9)) -> 36 | AE9: 20 | AF9: 20 | AG9: 15 | AH9: 15 | AI9: =IF($C9="","",SUM(AG9:AH9)) -> 30 | AJ9: 10 | AK9: 10 | AL9: =IF($C9="","",SUM(AJ9:AK9)) -> 20 | AM9: 10 | AN9: 10 | AO9: =IF($C9="","",SUM(AM9:AN9)) -> 20 | AP9: 10 | AQ9: 10 | AR9: =IF($C9="","",SUM(AP9:AQ9)) -> 20 | AS9: 10 | AT9: 20 | AU9: =IF($C9="","",SUM(P9,Q9,R9,U9,X9,AA9,AD9,AE9,AF9,AI9,AL9,AO9,AR9,AS9,AT9)) -> 307 | AV9: 10 | AW9: =IF(C9="","",IF(SUMPRODUCT(--(FA9:FQ9="×"))=0,"ناجح","راسب")) -> ناجح | BM9: 0 | BS9: =IF(C9="","",IF(E9="منقوله","منتظم",IF(E9="منقول","منتظم","عمال"))) -> منتظم | FA9: =IF($C9="","",IF(P9<$FA$8,"×",IF(P9="غ","غ",P9))) -> 25 | FB9: =IF($C9="","",IF(Q9<$FB$8,"×",IF(Q9="غ","غ",Q9))) -> 20 | FC9: =IF($C9="","",IF(R9<$FC$8,"×",IF(R9="غ","غ",R9))) -> 10 | FD9: =IF($C9="","",IF(S9<$FD$8/2,"×",IF(S9="غ","غ",IF(T9<$FD$8/2,"×",IF(T9="غ","غ",SUM(S9:T9)))))) -> 20 | FE9: =IF($C9="","",IF(V9<$FE$8/2,"×",IF(V9="غ","غ",IF(W9<$FE$8/2,"×",IF(W9="غ","غ",SUM(V9:W9)))))) -> 15 | FF9: =IF($C9="","",IF(Y9<$FF$8/2,"×",IF(Y9="غ","غ",IF(Z9<$FF$8/2,"×",IF(Z9="غ","غ",SUM(Y9:Z9)))))) -> 21 | FG9: =IF($C9="","",IF(AB9<$FG$8/2,"×",IF(AB9="غ","غ",IF(AC9<$FG$8/2,"×",IF(AC9="غ","غ",SUM(AB9:AC9)))))) -> 36 | FH9: =IF($C9="","",IF(AE9<$FH$8,"×",IF(AE9="غ","غ",AE9))) -> 20 | FI9: =IF($C9="","",IF(AF9<$FI$8,"×",IF(AF9="غ","غ",AF9))) -> 20 | FJ9: =IF($C9="","",IF(AG9<$FJ$8/2,"×",IF(AG9="غ","غ",IF(AH9<$FJ$8/2,"×",IF(AH9="غ","غ",SUM(AG9:AH9)))))) -> 30 | FK9: =IF($C9="","",IF(AJ9<$FK$8/2,"×",IF(AJ9="غ","غ",IF(AK9<$FK$8/2,"×",IF(AK9="غ","غ",SUM(AJ9:AK9)))))) -> 20 | FL9: =IF($C9="","",IF(AM9<$FL$8/2,"×",IF(AM9="غ","غ",IF(AN9<$FL$8/2,"×",IF(AN9="غ","غ",SUM(AM9:AN9)))))) -> 20 | FM9: =IF($C9="","",IF(AP9<$FM$8/2,"×",IF(AP9="غ","غ",IF(AQ9<$FM$8/2,"×",IF(AQ9="غ","غ",SUM(AP9:AQ9)))))) -> 20 | FN9: =IF($C9="","",IF(AS9<$FN$8,"×",IF(AS9="غ","غ",AS9))) -> 10 | FO9: =IF($C9="","",IF(AT9<$FO$8,"×",IF(AT9="غ","غ",AT9))) -> 20 | FP9: =IF($C9="","",IF(SUMPRODUCT(--(FA9:FO9="×"))>0,"×",SUM(FA9:FO9))) -> 307 | FQ9: =IF($C9="","",IF(AV9<$FQ$8,"×",IF(AV9="غ","غ",AV9))) -> 10
A10: 2 | B10: 502 | C10: بسمه محمد عبد اللطيف السعيد | D10: انثى | E10: منقول | F10: 30111011202722 | G10: 2001-11-01 | H10: 1 | I10: 11 | J10: 2001 | K10: 0 | L10: 11 | M10: 16 | O10: مصرية | P10: 20 | Q10: 17.5 | R10: 6.5 | S10: 9 | T10: 9 | U10: =IF($C10="","",SUM(S10:T10)) -> 18 | V10: 7 | W10: 7.5 | X10: =IF($C10="","",SUM(V10:W10)) -> 14.5 | Y10: 9 | Z10: 12 | AA10: =IF($C10="","",SUM(Y10:Z10)) -> 21 | AB10: 11 | AC10: 32 | AD10: =IF($C10="","",SUM(AB10:AC10)) -> 43 | AE10: 17.5 | AF10: 15 | AG10: 11 | AH10: 12 | AI10: =IF($C10="","",SUM(AG10:AH10)) -> 23 | AJ10: 9 | AK10: 9 | AL10: =IF($C10="","",SUM(AJ10:AK10)) -> 18 | AM10: 9 | AN10: 9 | AO10: =IF($C10="","",SUM(AM10:AN10)) -> 18 | AP10: 9 | AQ10: 9 | AR10: =IF($C10="","",SUM(AP10:AQ10)) -> 18 | AS10: 7.5 | AT10: 18 | AU10: =IF($C10="","",SUM(P10,Q10,R10,U10,X10,AA10,AD10,AE10,AF10,AI10,AL10,AO10,AR10,AS10,AT10)) -> 275.5 | AV10: 8.5 | AW10: =IF(C10="","",IF(SUMPRODUCT(--(FA10:FQ10="×"))=0,"ناجح","راسب")) -> راسب | BM10: 0 | BS10: =IF(C10="","",IF(E10="منقوله","منتظم",IF(E10="منقول","منتظم","عمال"))) -> منتظم | FA10: =IF($C10="","",IF(P10<$FA$8,"×",IF(P10="غ","غ",P10))) -> × | FB10: =IF($C10="","",IF(Q10<$FB$8,"×",IF(Q10="غ","غ",Q10))) -> × | FC10: =IF($C10="","",IF(R10<$FC$8,"×",IF(R10="غ","غ",R10))) -> × | FD10: =IF($C10="","",IF(S10<$FD$8/2,"×",IF(S10="غ","غ",IF(T10<$FD$8/2,"×",IF(T10="غ","غ",SUM(S10:T10)))))) -> × | FE10: =IF($C10="","",IF(V10<$FE$8/2,"×",IF(V10="غ","غ",IF(W10<$FE$8/2,"×",IF(W10="غ","غ",SUM(V10:W10)))))) -> × | FF10: =IF($C10="","",IF(Y10<$FF$8/2,"×",IF(Y10="غ","غ",IF(Z10<$FF$8/2,"×",IF(Z10="غ","غ",SUM(Y10:Z10)))))) -> × | FG10: =IF($C10="","",IF(AB10<$FG$8/2,"×",IF(AB10="غ","غ",IF(AC10<$FG$8/2,"×",IF(AC10="غ","غ",SUM(AB10:AC10)))))) -> 43 | FH10: =IF($C10="","",IF(AE10<$FH$8,"×",IF(AE10="غ","غ",AE10))) -> × | FI10: =IF($C10="","",IF(AF10<$FI$8,"×",IF(AF10="غ","غ",AF10))) -> × | FJ10: =IF($C10="","",IF(AG10<$FJ$8/2,"×",IF(AG10="غ","غ",IF(AH10<$FJ$8/2,"×",IF(AH10="غ","غ",SUM(AG10:AH10)))))) -> 23 | FK10: =IF($C10="","",IF(AJ10<$FK$8/2,"×",IF(AJ10="غ","غ",IF(AK10<$FK$8/2,"×",IF(AK10="غ","غ",SUM(AJ10:AK10)))))) -> × | FL10: =IF($C10="","",IF(AM10<$FL$8/2,"×",IF(AM10="غ","غ",IF(AN10<$FL$8/2,"×",IF(AN10="غ","غ",SUM(AM10:AN10)))))) -> × | FM10: =IF($C10="","",IF(AP10<$FM$8/2,"×",IF(AP10="غ","غ",IF(AQ10<$FM$8/2,"×",IF(AQ10="غ","غ",SUM(AP10:AQ10)))))) -> × | FN10: =IF($C10="","",IF(AS10<$FN$8,"×",IF(AS10="غ","غ",AS10))) -> × | FO10: =IF($C10="","",IF(AT10<$FO$8,"×",IF(AT10="غ","غ",AT10))) -> × | FP10: =IF($C10="","",IF(SUMPRODUCT(--(FA10:FO10="×"))>0,"×",SUM(FA10:FO10))) -> × | FQ10: =IF($C10="","",IF(AV10<$FQ$8,"×",IF(AV10="غ","غ",AV10))) -> ×
A11: 3 | B11: 503 | C11: ضحى مصطفى عبد الهادى ابراهيم | D11: انثى | E11: عمال | F11: 30209151206086 | G11: 2002-09-15 | H11: 15 | I11: 9 | J11: 2002 | K11: 16 | L11: 0 | M11: 16 | O11: مصرية | P11: 50 | Q11: 40 | R11: 20 | S11: 20 | T11: 20 | U11: 40 | V11: 15 | W11: 15 | X11: 30 | Y11: 20 | Z11: 20 | AA11: 40 | AB11: 15 | AC11: 15 | AD11: 30 | AE11: 40 | AF11: 40 | AG11: 30 | AH11: 30 | AI11: 60 | AJ11: 20 | AK11: 20 | AL11: 40 | AM11: 20 | AN11: 20 | AO11: 40 | AP11: 20 | AQ11: 20 | AR11: 40 | AS11: 20 | AT11: 40 | AU11: 570 | AV11: 20 | AW11: ناجح | BM11: 0 | BS11: عمال | FA11: 50 | FB11: 40 | FC11: 20 | FD11: 40 | FE11: 30 | FF11: 40 | FG11: 30 | FH11: 40 | FI11: 40 | FJ11: 60 | FK11: 40 | FL11: 40 | FM11: 40 | FN11: 20 | FO11: 40 | FP11: 570 | FQ11: 20
A12: 4 | B12: 504 | C12: اسلام محمد عاشور احمد محمد | D12: ذكر | E12: منقول | F12: 30204011216179 | G12: 2002-04-01 | H12: 1 | I12: 4 | J12: 2002 | K12: 0 | L12: 6 | M12: 16 | O12: مصرى | P12: 20 | Q12: 19 | R12: 9 | S12: 9 | T12: 9 | U12: 18 | V12: 7 | W12: 7.5 | X12: 14.5 | Y12: 9 | Z12: 11 | AA12: 20 | AB12: 7 | AC12: 27 | AD12: 34 | AE12: 19 | AF12: 25 | AG12: 14 | AH12: 12 | AI12: 26 | AJ12: 9 | AK12: 9 | AL12: 18 | AM12: 9 | AN12: 9 | AO12: 18 | AP12: 9 | AQ12: 9 | AR12: 18 | AS12: غ | AT12: 20 | AU12: 278.5 | AV12: 1 | AW12: راسب | BM12: 1 | BS12: منتظم | FA12: × | FB12: × | FC12: × | FD12: × | FE12: × | FF12: × | FG12: × | FH12: × | FI12: 25 | FJ12: 26 | FK12: × | FL12: × | FM12: × | FN12: غ | FO12: 20 | FP12: × | FQ12: ×
A13: 5 | B13: 505 | C13: بركات عماد عبد الرحمن بركات | D13: ذكر | E13: منقول | F13: 30206101200258 | G13: 2002-06-10 | H13: 10 | I13: 6 | J13: 2002 | K13: 21 | L13: 3 | M13: 16 | O13: مصرى | P13: 25 | Q13: 20 | R13: 10 | S13: 10 | T13: 10 | U13: 20 | V13: 7.5 | W13: 7 | X13: 14.5 | Y13: 10 | Z13: 4 | AA13: 14 | AB13: 7.5 | AC13: 21.5 | AD13: 29 | AE13: 20 | AF13: 25 | AG13: 15 | AH13: 15 | AI13: 30 | AJ13: 10 | AK13: 10 | AL13: 20 | AM13: 10 | AN13: 10 | AO13: 20 | AP13: 10 | AQ13: 10 | AR13: 20 | AS13: 10 | AT13: 20 | AU13: 297.5 | AV13: 10 | AW13: راسب | BM13: 0 | BS13: منتظم | FA13: 25 | FB13: 20 | FC13: 10 | FD13: 20 | FE13: × | FF13: × | FG13: 29 | FH13: 20 | FI13: 25 | FJ13: 30 | FK13: 20 | FL13: 20 | FM13: 20 | FN13: 10 | FO13: 20 | FP13: × | FQ13: 10
A14: 6 | B14: 506 | C14: عبد الله فيصل خليل متولي عبده | D14: ذكر | E14: عمال | F14: 30301011239131 | G14: 2003-01-01 | H14: 1 | I14: 1 | J14: 2003 | K14: 0 | L14: 9 | M14: 15 | O14: مصرى | P14: 25 | Q14: 20 | R14: 10 | S14: 10 | T14: 10 | U14: 20 | V14: 7.5 | W14: 7.5 | X14: 15 | Y14: 10 | Z14: 6 | AA14: 16 | AB14: 7.5 | AC14: 23.5 | AD14: 31 | AE14: 20 | AF14: 23 | AG14: 15 | AH14: 15 | AI14: 30 | AJ14: 10 | AK14: 10 | AL14: 20 | AM14: 10 | AN14: 10 | AO14: 20 | AP14: 10 | AQ14: 10 | AR14: 20 | AS14: 10 | AT14: 20 | AU14: 300 | AV14: 10 | AW14: راسب | BM14: 0 | BS14: عمال | FA14: 25 | FB14: 20 | FC14: 10 | FD14: 20 | FE14: 15 | FF14: × | FG14: 31 | FH14: 20 | FI14: 23 | FJ14: 30 | FK14: 20 | FL14: 20 | FM14: 20 | FN14: 10 | FO14: 20 | FP14: × | FQ14: 10
A15: 7 | B15: 507 | C15: على حسن محمد على محمد | D15: ذكر | E15: منقول | F15: 30301251202251 | G15: 2003-01-25 | H15: 25 | I15: 1 | J15: 2003 | K15: 6 | L15: 8 | M15: 15 | O15: مصرى | P15: 20 | Q15: 17.5 | R15: 8.5 | S15: 9 | T15: 9 | U15: 18 | V15: 7 | W15: 7.5 | X15: 14.5 | Y15: 9 | Z15: 11 | AA15: 20 | AB15: 7 | AC15: 27 | AD15: 34 | AE15: 17.5 | AF15: 14 | AG15: 13 | AH15: 14 | AI15: 27 | AJ15: 9 | AK15: 9 | AL15: 18 | AM15: 9 | AN15: 9 | AO15: 18 | AP15: 9 | AQ15: 9 | AR15: 18 | AS15: 9 | AT15: غ | AU15: 254 | AV15: 6.5 | AW15: راسب | BM15: 1 | BS15: منتظم | FA15: × | FB15: × | FC15: × | FD15: × | FE15: × | FF15: × | FG15: × | FH15: × | FI15: × | FJ15: 27 | FK15: × | FL15: × | FM15: × | FN15: × | FO15: غ | FP15: × | FQ15: ×
A16: 8 | B16: 508 | C16: محمد عصام نبيل عبدالعليم السعيد | D16: ذكر | E16: منقول | F16: 30201011226698 | G16: 2002-01-01 | H16: 1 | I16: 1 | J16: 2002 | K16: 0 | L16: 9 | M16: 16 | O16: مصرى | P16: 25 | Q16: 20 | R16: 10 | S16: 10 | T16: 10 | U16: 20 | V16: 7.5 | W16: 7 | X16: 14.5 | Y16: 10 | Z16: 15 | AA16: 25 | AB16: 7.5 | AC16: 32.5 | AD16: 40 | AE16: 20 | AF16: 15 | AG16: 15 | AH16: 15 | AI16: 30 | AJ16: 10 | AK16: 10 | AL16: 20 | AM16: 10 | AN16: 10 | AO16: 20 | AP16: 10 | AQ16: 10 | AR16: 20 | AS16: 10 | AT16: 20 | AU16: 309.5 | AV16: 10 | AW16: راسب | BM16: 0 | BS16: منتظم | FA16: 25 | FB16: 20 | FC16: 10 | FD16: 20 | FE16: × | FF16: 25 | FG16: 40 | FH16: 20 | FI16: × | FJ16: 30 | FK16: 20 | FL16: 20 | FM16: 20 | FN16: 10 | FO16: 20 | FP16: × | FQ16: 10
A17: 9 | B17: 509 | C17: محمود رضا متولى عبد المنعم محمود | D17: ذكر | E17: عمال | F17: 30301041201376 | G17: 2003-01-04 | H17: 4 | I17: 1 | J17: 2003 | K17: 27 | L17: 8 | M17: 15 | O17: مصرى | P17: غ | Q17: 20 | R17: 10 | S17: 5 | T17: 5 | U17: 10 | V17: 7 | W17: 7.5 | X17: 14.5 | Y17: 5 | Z17: 12 | AA17: 17 | AB17: 7 | AC17: 24 | AD17: 31 | AE17: 20 | AF17: 14 | AG17: 15 | AH17: 15 | AI17: 30 | AJ17: 5 | AK17: 5 | AL17: 10 | AM17: 5 | AN17: 5 | AO17: 10 | AP17: 5 | AQ17: 5 | AR17: 10 | AS17: 8 | AT17: 17 | AU17: 221.5 | AV17: 8 | AW17: راسب | BM17: 1 | BS17: عمال | FA17: غ | FB17: 20 | FC17: 10 | FD17: × | FE17: × | FF17: × | FG17: × | FH17: 20 | FI17: × | FJ17: 30 | FK17: × | FL17: × | FM17: × | FN17: × | FO17: × | FP17: × | FQ17: ×
A18: 10 | B18: 510 | C18: مسعد صلاح عبد الله عباس | D18: ذكر | E18: عمال | F18: 30202071202972 | G18: 2002-02-07 | H18: 7 | I18: 2 | J18: 2002 | K18: 24 | L18: 7 | M18: 16 | O18: مصرى | P18: 25 | Q18: 20 | R18: 10 | S18: 10 | T18: 10 | U18: 20 | V18: 7.5 | W18: 7 | X18: 14.5 | Y18: 10 | Z18: 11 | AA18: 21 | AB18: 7.5 | AC18: 28.5 | AD18: 36 | AE18: 20 | AF18: 18 | AG18: 15 | AH18: 15 | AI18: 30 | AJ18: 10 | AK18: 10 | AL18: 20 | AM18: 10 | AN18: 10 | AO18: 20 | AP18: 10 | AQ18: 10 | AR18: 20 | AS18: 10 | AT18: 20 | AU18: 304.5 | AV18: 10 | AW18: راسب | BM18: 0 | BS18: عمال | FA18: 25 | FB18: 20 | FC18: 10 | FD18: 20 | FE18: × | FF18: 21 | FG18: 36 | FH18: 20 | FI18: × | FJ18: 30 | FK18: 20 | FL18: 20 | FM18: 20 | FN18: 10 | FO18: 20 | FP18: × | FQ18: 10
U74: =IF($C74="","",SUM(S74:T74)) ->  | X74: =IF($C74="","",SUM(V74:W74)) ->  | AA74: =IF($C74="","",SUM(Y74:Z74)) ->  | AD74: =IF($C74="","",SUM(AB74:AC74)) ->  | AI74: =IF($C74="","",SUM(AG74:AH74)) ->  | AL74: =IF($C74="","",SUM(AJ74:AK74)) ->  | AO74: =IF($C74="","",SUM(AM74:AN74)) ->  | AR74: =IF($C74="","",SUM(AP74:AQ74)) ->  | AU74: =IF($C74="","",SUM(P74,Q74,R74,U74,X74,AA74,AD74,AE74,AF74,AI74,AL74,AO74,AR74,AS74,AT74)) ->  | AW74: =IF(C74="","",IF(SUMPRODUCT(--(FA74:FQ74="×"))=0,"ناجح","راسب")) ->  | BS74: =IF(C74="","",IF(E74="منقوله","منتظم",IF(E74="منقول","منتظم","عمال"))) ->  | FA74: =IF($C74="","",IF(P74<$FA$8,"×",IF(P74="غ","غ",P74))) ->  | FB74: =IF($C74="","",IF(Q74<$FB$8,"×",IF(Q74="غ","غ",Q74))) ->  | FC74: =IF($C74="","",IF(R74<$FC$8,"×",IF(R74="غ","غ",R74))) ->  | FD74: =IF($C74="","",IF(S74<$FD$8/2,"×",IF(S74="غ","غ",IF(T74<$FD$8/2,"×",IF(T74="غ","غ",SUM(S74:T74)))))) ->  | FE74: =IF($C74="","",IF(V74<$FE$8/2,"×",IF(V74="غ","غ",IF(W74<$FE$8/2,"×",IF(W74="غ","غ",SUM(V74:W74)))))) ->  | FF74: =IF($C74="","",IF(Y74<$FF$8/2,"×",IF(Y74="غ","غ",IF(Z74<$FF$8/2,"×",IF(Z74="غ","غ",SUM(Y74:Z74)))))) ->  | FG74: =IF($C74="","",IF(AB74<$FG$8/2,"×",IF(AB74="غ","غ",IF(AC74<$FG$8/2,"×",IF(AC74="غ","غ",SUM(AB74:AC74)))))) ->  | FH74: =IF($C74="","",IF(AE74<$FH$8,"×",IF(AE74="غ","غ",AE74))) ->  | FI74: =IF($C74="","",IF(AF74<$FI$8,"×",IF(AF74="غ","غ",AF74))) ->  | FJ74: =IF($C74="","",IF(AG74<$FJ$8/2,"×",IF(AG74="غ","غ",IF(AH74<$FJ$8/2,"×",IF(AH74="غ","غ",SUM(AG74:AH74)))))) ->  | FK74: =IF($C74="","",IF(AJ74<$FK$8/2,"×",IF(AJ74="غ","غ",IF(AK74<$FK$8/2,"×",IF(AK74="غ","غ",SUM(AJ74:AK74)))))) ->  | FL74: =IF($C74="","",IF(AM74<$FL$8/2,"×",IF(AM74="غ","غ",IF(AN74<$FL$8/2,"×",IF(AN74="غ","غ",SUM(AM74:AN74)))))) ->  | FM74: =IF($C74="","",IF(AP74<$FM$8/2,"×",IF(AP74="غ","غ",IF(AQ74<$FM$8/2,"×",IF(AQ74="غ","غ",SUM(AP74:AQ74)))))) ->  | FN74: =IF($C74="","",IF(AS74<$FN$8,"×",IF(AS74="غ","غ",AS74))) ->  | FO74: =IF($C74="","",IF(AT74<$FO$8,"×",IF(AT74="غ","غ",AT74))) ->  | FP74: =IF($C74="","",IF(SUMPRODUCT(--(FA74:FO74="×"))>0,"×",SUM(FA74:FO74))) ->  | FQ74: =IF($C74="","",IF(AV74<$FQ$8,"×",IF(AV74="غ","غ",AV74))) -> 
U138: =IF($C138="","",SUM(S138:T138)) ->  | X138: =IF($C138="","",SUM(V138:W138)) ->  | AA138: =IF($C138="","",SUM(Y138:Z138)) ->  | AD138: =IF($C138="","",SUM(AB138:AC138)) ->  | AI138: =IF($C138="","",SUM(AG138:AH138)) ->  | AL138: =IF($C138="","",SUM(AJ138:AK138)) ->  | AO138: =IF($C138="","",SUM(AM138:AN138)) ->  | AR138: =IF($C138="","",SUM(AP138:AQ138)) ->  | AU138: =IF($C138="","",SUM(P138,Q138,R138,U138,X138,AA138,AD138,AE138,AF138,AI138,AL138,AO138,AR138,AS138,AT138)) ->  | AW138: =IF(C138="","",IF(SUMPRODUCT(--(FA138:FQ138="×"))=0,"ناجح","راسب")) ->  | BS138: =IF(C138="","",IF(E138="منقوله","منتظم",IF(E138="منقول","منتظم","عمال"))) ->  | FA138: =IF($C138="","",IF(P138<$FA$8,"×",IF(P138="غ","غ",P138))) ->  | FB138: =IF($C138="","",IF(Q138<$FB$8,"×",IF(Q138="غ","غ",Q138))) ->  | FC138: =IF($C138="","",IF(R138<$FC$8,"×",IF(R138="غ","غ",R138))) ->  | FD138: =IF($C138="","",IF(S138<$FD$8/2,"×",IF(S138="غ","غ",IF(T138<$FD$8/2,"×",IF(T138="غ","غ",SUM(S138:T138)))))) ->  | FE138: =IF($C138="","",IF(V138<$FE$8/2,"×",IF(V138="غ","غ",IF(W138<$FE$8/2,"×",IF(W138="غ","غ",SUM(V138:W138)))))) ->  | FF138: =IF($C138="","",IF(Y138<$FF$8/2,"×",IF(Y138="غ","غ",IF(Z138<$FF$8/2,"×",IF(Z138="غ","غ",SUM(Y138:Z138)))))) ->  | FG138: =IF($C138="","",IF(AB138<$FG$8/2,"×",IF(AB138="غ","غ",IF(AC138<$FG$8/2,"×",IF(AC138="غ","غ",SUM(AB138:AC138)))))) ->  | FH138: =IF($C138="","",IF(AE138<$FH$8,"×",IF(AE138="غ","غ",AE138))) ->  | FI138: =IF($C138="","",IF(AF138<$FI$8,"×",IF(AF138="غ","غ",AF138))) ->  | FJ138: =IF($C138="","",IF(AG138<$FJ$8/2,"×",IF(AG138="غ","غ",IF(AH138<$FJ$8/2,"×",IF(AH138="غ","غ",SUM(AG138:AH138)))))) ->  | FK138: =IF($C138="","",IF(AJ138<$FK$8/2,"×",IF(AJ138="غ","غ",IF(AK138<$FK$8/2,"×",IF(AK138="غ","غ",SUM(AJ138:AK138)))))) ->  | FL138: =IF($C138="","",IF(AM138<$FL$8/2,"×",IF(AM138="غ","غ",IF(AN138<$FL$8/2,"×",IF(AN138="غ","غ",SUM(AM138:AN138)))))) ->  | FM138: =IF($C138="","",IF(AP138<$FM$8/2,"×",IF(AP138="غ","غ",IF(AQ138<$FM$8/2,"×",IF(AQ138="غ","غ",SUM(AP138:AQ138)))))) ->  | FN138: =IF($C138="","",IF(AS138<$FN$8,"×",IF(AS138="غ","غ",AS138))) ->  | FO138: =IF($C138="","",IF(AT138<$FO$8,"×",IF(AT138="غ","غ",AT138))) ->  | FP138: =IF($C138="","",IF(SUMPRODUCT(--(FA138:FO138="×"))>0,"×",SUM(FA138:FO138))) ->  | FQ138: =IF($C138="","",IF(AV138<$FQ$8,"×",IF(AV138="غ","غ",AV138))) -> 
U202: =IF($C202="","",SUM(S202:T202)) ->  | X202: =IF($C202="","",SUM(V202:W202)) ->  | AA202: =IF($C202="","",SUM(Y202:Z202)) ->  | AD202: =IF($C202="","",SUM(AB202:AC202)) ->  | AI202: =IF($C202="","",SUM(AG202:AH202)) ->  | AL202: =IF($C202="","",SUM(AJ202:AK202)) ->  | AO202: =IF($C202="","",SUM(AM202:AN202)) ->  | AR202: =IF($C202="","",SUM(AP202:AQ202)) ->  | AU202: =IF($C202="","",SUM(P202,Q202,R202,U202,X202,AA202,AD202,AE202,AF202,AI202,AL202,AO202,AR202,AS202,AT202)) ->  | AW202: =IF(C202="","",IF(SUMPRODUCT(--(FA202:FQ202="×"))=0,"ناجح","راسب")) ->  | BS202: =IF(C202="","",IF(E202="منقوله","منتظم",IF(E202="منقول","منتظم","عمال"))) ->  | FA202: =IF($C202="","",IF(P202<$FA$8,"×",IF(P202="غ","غ",P202))) ->  | FB202: =IF($C202="","",IF(Q202<$FB$8,"×",IF(Q202="غ","غ",Q202))) ->  | FC202: =IF($C202="","",IF(R202<$FC$8,"×",IF(R202="غ","غ",R202))) ->  | FD202: =IF($C202="","",IF(S202<$FD$8/2,"×",IF(S202="غ","غ",IF(T202<$FD$8/2,"×",IF(T202="غ","غ",SUM(S202:T202)))))) ->  | FE202: =IF($C202="","",IF(V202<$FE$8/2,"×",IF(V202="غ","غ",IF(W202<$FE$8/2,"×",IF(W202="غ","غ",SUM(V202:W202)))))) ->  | FF202: =IF($C202="","",IF(Y202<$FF$8/2,"×",IF(Y202="غ","غ",IF(Z202<$FF$8/2,"×",IF(Z202="غ","غ",SUM(Y202:Z202)))))) ->  | FG202: =IF($C202="","",IF(AB202<$FG$8/2,"×",IF(AB202="غ","غ",IF(AC202<$FG$8/2,"×",IF(AC202="غ","غ",SUM(AB202:AC202)))))) ->  | FH202: =IF($C202="","",IF(AE202<$FH$8,"×",IF(AE202="غ","غ",AE202))) ->  | FI202: =IF($C202="","",IF(AF202<$FI$8,"×",IF(AF202="غ","غ",AF202))) ->  | FJ202: =IF($C202="","",IF(AG202<$FJ$8/2,"×",IF(AG202="غ","غ",IF(AH202<$FJ$8/2,"×",IF(AH202="غ","غ",SUM(AG202:AH202)))))) ->  | FK202: =IF($C202="","",IF(AJ202<$FK$8/2,"×",IF(AJ202="غ","غ",IF(AK202<$FK$8/2,"×",IF(AK202="غ","غ",SUM(AJ202:AK202)))))) ->  | FL202: =IF($C202="","",IF(AM202<$FL$8/2,"×",IF(AM202="غ","غ",IF(AN202<$FL$8/2,"×",IF(AN202="غ","غ",SUM(AM202:AN202)))))) ->  | FM202: =IF($C202="","",IF(AP202<$FM$8/2,"×",IF(AP202="غ","غ",IF(AQ202<$FM$8/2,"×",IF(AQ202="غ","غ",SUM(AP202:AQ202)))))) ->  | FN202: =IF($C202="","",IF(AS202<$FN$8,"×",IF(AS202="غ","غ",AS202))) ->  | FO202: =IF($C202="","",IF(AT202<$FO$8,"×",IF(AT202="غ","غ",AT202))) ->  | FP202: =IF($C202="","",IF(SUMPRODUCT(--(FA202:FO202="×"))>0,"×",SUM(FA202:FO202))) ->  | FQ202: =IF($C202="","",IF(AV202<$FQ$8,"×",IF(AV202="غ","غ",AV202))) -> 
... 6 more rows

Sheet نتائج
A1: محافظة الشرقية | AR1: =MAX(مرجع) -> 10 | AS1: =MAX(مرجع)+19 -> 29
A2: مديرية التربية والتعليم | G2: كشف رصد درجات عن العام الدراسى 2018 / 2019م | AS2: =AS1/20 -> 1.45
A3: إدارة كفر صقر التعليمية | G3: الدور الثانى للصف الثانى الثانوى الزراعى ( عمال ) - الشعبة فنى معامل
A4: مدرسة كفر صقر الثانوية الزراعية | G4: طلبه وطالبات راسبون وباقون للإعادة | AS4: 1
A5: م | B5: رقم الجلوس | D5: اســــــــــم الطالب | I5: النوع | J5: حالة القيد | K5: تاريخ الميلاد | N5: السن فى أول أكتوبر | Q5: =الرصد!FA5 -> اللغة العربية | R5: =الرصد!FB5 -> اللغة الإنجليزية | S5: =الرصد!FC5 -> حاسب آلى | T5: =الرصد!FD5 -> محاصيل الحقل | U5: =الرصد!FE5 -> بيولوجى | V5: =الرصد!FF5 -> ألبـــــــان | W5: =الرصد!FG5 -> تربية نحل | X5: =الرصد!FH5 -> اقتصاد زراعى | Y5: =الرصد!FI5 -> إرشاد زراعى | Z5: =الرصد!FJ5 -> فيزياء | AA5: =الرصد!FK5 -> كيمياء | AB5: =الرصد!FL5 -> وسائل تعليمية | AC5: =الرصد!FM5 -> عهد ومخازن | AD5: =الرصد!FN5 -> أمن وقائى | AE5: =الرصد!FO5 -> ورش وصيانة | AF5: =الرصد!FP5 -> المجموع | AG5: =الرصد!FQ5 -> التربية الدينية | AH5: نتيجة الطالب | AS5: =$AS$2 -> 1.45
Q6: =الرصد!FA7 -> 50 | R6: =الرصد!FB7 -> 40 | S6: =الرصد!FC7 -> 20 | T6: =الرصد!FD7 -> 40 | U6: =الرصد!FE7 -> 30 | V6: =الرصد!FF7 -> 40 | W6: =الرصد!FG7 -> 30 | X6: =الرصد!FH7 -> 40 | Y6: =الرصد!FI7 -> 40 | Z6: =الرصد!FJ7 -> 40 | AA6: =الرصد!FK7 -> 40 | AB6: =الرصد!FL7 -> 40 | AC6: =الرصد!FM7 -> 40 | AD6: =الرصد!FN7 -> 20 | AE6: =الرصد!FO7 -> 40 | AF6: =الرصد!FP7 -> 550 | AG6: =الرصد!FQ7 -> 20
K7: يوم | L7: شهر | M7: سنة | N7: يوم | O7: شهر | P7: سنة | Q7: =Q6/2 -> 25 | R7: =R6/2 -> 20 | S7: 10 | T7: 20 | U7: 15 | V7: 20 | W7: 15 | X7: 20 | Y7: 20 | Z7: 20 | AA7: 20 | AB7: 20 | AC7: 20 | AD7: 10 | AE7: 20 | AF7: 275 | AG7: 10
A8: =IF(AR1=0,"",$AS$4*20-19) -> 1 | B8: =IF(A8 ="","",VLOOKUP(A8,بيانات1,3,0)) -> 501 | D8: =IF(A8 ="","",VLOOKUP(A8,بيانات1,4,0)) -> اسماء عوض ابراهيم احمد زغلول | I8: =IF($A8 ="","",VLOOKUP($A8,بيانات1,5,0)) -> انثى | J8: =IF($A8 ="","",VLOOKUP($A8,بيانات1,6,0)) -> منقول | K8: =IF($A8 ="","",VLOOKUP($A8,بيانات1,9,0)) -> 1 | L8: =IF($A8 ="","",VLOOKUP($A8,بيانات1,10,0)) -> 3 | M8: =IF($A8 ="","",VLOOKUP($A8,بيانات1,11,0)) -> 2002 | N8: =IF($A8 ="","",VLOOKUP($A8,بيانات1,12,0)) -> 0 | O8: =IF($A8 ="","",VLOOKUP($A8,بيانات1,13,0)) -> 7 | P8: =IF($A8 ="","",VLOOKUP($A8,بيانات1,14,0)) -> 16 | Q8: =IF($A8 ="","",VLOOKUP($A8,بيانات1,17,0)) -> 25 | R8: =IF($A8 ="","",VLOOKUP($A8,بيانات1,18,0)) -> 20 | S8: =IF($A8 ="","",VLOOKUP($A8,بيانات1,19,0)) -> 10 | T8: =IF($A8 ="","",VLOOKUP($A8,بيانات1,22,0)) -> 20 | U8: =IF($A8 ="","",VLOOKUP($A8,بيانات1,25,0)) -> 15 | V8: =IF($A8 ="","",VLOOKUP($A8,بيانات1,28,0)) -> 21 | W8: =IF($A8 ="","",VLOOKUP($A8,بيانات1,31,0)) -> 36 | X8: =IF($A8 ="","",VLOOKUP($A8,بيانات1,32,0)) -> 20 | Y8: =IF($A8 ="","",VLOOKUP($A8,بيانات1,33,0)) -> 20 | Z8: =IF($A8 ="","",VLOOKUP($A8,بيانات1,36,0)) -> 30 | AA8: =IF($A8 ="","",VLOOKUP($A8,بيانات1,39,0)) -> 20 | AB8: =IF($A8 ="","",VLOOKUP($A8,بيانات1,42,0)) -> 20 | AC8: =IF($A8 ="","",VLOOKUP($A8,بيانات1,45,0)) -> 20 | AD8: =IF($A8 ="","",VLOOKUP($A8,بيانات1,46,0)) -> 10 | AE8: =IF($A8 ="","",VLOOKUP($A8,بيانات1,47,0)) -> 20 | AF8: =IF($A8 ="","",VLOOKUP($A8,بيانات1,48,0)) -> 307 | AG8: =IF($A8 ="","",VLOOKUP($A8,بيانات1,49,0)) -> 10 | AH8: =IF($A8 ="","",VLOOKUP($A8,بيانات1,50,0)) -> ناجح
A9: =IF(A8>=$AR$1,"",A8+1) -> 2 | B9: 502 | D9: بسمه محمد عبد اللطيف السعيد | I9: انثى | J9: منقول | K9: 1 | L9: 11 | M9: 2001 | N9: 0 | O9: 11 | P9: 16 | Q9: 20 | R9: 17.5 | S9: 6.5 | T9: 18 | U9: 14.5 | V9: 21 | W9: 43 | X9: 17.5 | Y9: 15 | Z9: 23 | AA9: 18 | AB9: 18 | AC9: 18 | AD9: 7.5 | AE9: 18 | AF9: 275.5 | AG9: 8.5 | AH9: راسب | BW9: =IF($C9="","",IF(SUMPRODUCT(--(U9:W9="غ"))>0,"غ","")) ->  | BX9: =IF($C9="","",IF(SUMPRODUCT(--(X9:Z9="غ"))>0,"غ","")) ->  | BY9: =IF($C9="","",IF(SUMPRODUCT(--(AA9:AC9="غ"))>0,"غ","")) ->  | BZ9: =IF($C9="","",IF(SUMPRODUCT(--(AD9:AF9="غ"))>0,"غ","")) ->  | CA9: =IF($C9="","",IF(SUMPRODUCT(--(AG9:AI9="غ"))>0,"غ","")) ->  | CB9: =IF($C9="","",IF(SUMPRODUCT(--(AJ9:AL9="غ"))>0,"غ","")) ->  | CC9: =IF($C9="","",IF(SUMPRODUCT(--(AM9:AO9="غ"))>0,"غ","")) ->  | CD9: =IF($C9="","",IF(SUMPRODUCT(--(AP9:AR9="غ"))>0,"غ","")) ->  | CO9: =IF(P9="غ","×",IF(P9<P$8,"×","")) ->  | CP9: =IF(Q9="غ","×",IF(Q9<Q$8,"×","")) -> × | CQ9: =IF(R9="غ","×",IF(R9<R$8,"×","")) -> × | DQ9: =IF(AR9="غ","×",IF(AR9<AR$8,"×","")) ->  | DR9: =IF(AS9="غ","×",IF(AS9<AS$8,"×","")) ->  | DS9: =IF(AT9="غ","×",IF(AT9<AT$8,"×","")) ->  | DT9: =IF(AU9="غ","×",IF(AU9<AU$8,"×","")) ->  | DU9: =IF(AV9="غ","×",IF(AV9<AV$8,"×","")) ->  | DV9: =IF(AW9="غ","×",IF(AW9<AW$8,"×","")) ->  | DW9: =IF(AX9="غ","×",IF(AX9<AX$8,"×","")) ->  | DX9: =IF(AY9="غ","×",IF(AY9<AY$8,"×","")) ->  | DY9: =IF(AZ9="غ","×",IF(AZ9<AZ$8,"×","")) ->  | DZ9: =IF(BA9="غ","×",IF(BA9<BA$8,"×","")) -> 
A10: =IF(A9>=$AR$1,"",A9+1) -> 3 | B10: 503 | D10: ضحى مصطفى عبد الهادى ابراهيم | I10: انثى | J10: عمال | K10: 15 | L10: 9 | M10: 2002 | N10: 16 | O10: 0 | P10: 16 | Q10: 50 | R10: 40 | S10: 20 | T10: 40 | U10: 30 | V10: 40 | W10: 30 | X10: 40 | Y10: 40 | Z10: 60 | AA10: 40 | AB10: 40 | AC10: 40 | AD10: 20 | AE10: 40 | AF10: 570 | AG10: 20 | AH10: ناجح
A11: 4 | B11: 504 | D11: اسلام محمد عاشور احمد محمد | I11: ذكر | J11: منقول | K11: 1 | L11: 4 | M11: 2002 | N11: 0 | O11: 6 | P11: 16 | Q11: 20 | R11: 19 | S11: 9 | T11: 18 | U11: 14.5 | V11: 20 | W11: 34 | X11: 19 | Y11: 25 | Z11: 26 | AA11: 18 | AB11: 18 | AC11: 18 | AD11: غ | AE11: 20 | AF11: 278.5 | AG11: 1 | AH11: راسب | CP11: × | CQ11: ×
A12: 5 | B12: 505 | D12: بركات عماد عبد الرحمن بركات | I12: ذكر | J12: منقول | K12: 10 | L12: 6 | M12: 2002 | N12: 21 | O12: 3 | P12: 16 | Q12: 25 | R12: 20 | S12: 10 | T12: 20 | U12: 14.5 | V12: 14 | W12: 29 | X12: 20 | Y12: 25 | Z12: 30 | AA12: 20 | AB12: 20 | AC12: 20 | AD12: 10 | AE12: 20 | AF12: 297.5 | AG12: 10 | AH12: راسب
A13: 6 | B13: 506 | D13: عبد الله فيصل خليل متولي عبده | I13: ذكر | J13: عمال | K13: 1 | L13: 1 | M13: 2003 | N13: 0 | O13: 9 | P13: 15 | Q13: 25 | R13: 20 | S13: 10 | T13: 20 | U13: 15 | V13: 16 | W13: 31 | X13: 20 | Y13: 23 | Z13: 30 | AA13: 20 | AB13: 20 | AC13: 20 | AD13: 10 | AE13: 20 | AF13: 300 | AG13: 10 | AH13: راسب | CO13: ×
A14: 7 | B14: 507 | D14: على حسن محمد على محمد | I14: ذكر | J14: منقول | K14: 25 | L14: 1 | M14: 2003 | N14: 6 | O14: 8 | P14: 15 | Q14: 20 | R14: 17.5 | S14: 8.5 | T14: 18 | U14: 14.5 | V14: 20 | W14: 34 | X14: 17.5 | Y14: 14 | Z14: 27 | AA14: 18 | AB14: 18 | AC14: 18 | AD14: 9 | AE14: غ | AF14: 254 | AG14: 6.5 | AH14: راسب | CO14: × | CP14: × | CQ14: ×
A15: 8 | B15: 508 | D15: محمد عصام نبيل عبدالعليم السعيد | I15: ذكر | J15: منقول | K15: 1 | L15: 1 | M15: 2002 | N15: 0 | O15: 9 | P15: 16 | Q15: 25 | R15: 20 | S15: 10 | T15: 20 | U15: 14.5 | V15: 25 | W15: 40 | X15: 20 | Y15: 15 | Z15: 30 | AA15: 20 | AB15: 20 | AC15: 20 | AD15: 10 | AE15: 20 | AF15: 309.5 | AG15: 10 | AH15: راسب
A16: 9 | B16: 509 | D16: محمود رضا متولى عبد المنعم محمود | I16: ذكر | J16: عمال | K16: 4 | L16: 1 | M16: 2003 | N16: 27 | O16: 8 | P16: 15 | Q16: غ | R16: 20 | S16: 10 | T16: 10 | U16: 14.5 | V16: 17 | W16: 31 | X16: 20 | Y16: 14 | Z16: 30 | AA16: 10 | AB16: 10 | AC16: 10 | AD16: 8 | AE16: 17 | AF16: 221.5 | AG16: 8 | AH16: راسب | CO16: × | CP16: ×
A17: 10 | B17: 510 | D17: مسعد صلاح عبد الله عباس | I17: ذكر | J17: عمال | K17: 7 | L17: 2 | M17: 2002 | N17: 24 | O17: 7 | P17: 16 | Q17: 25 | R17: 20 | S17: 10 | T17: 20 | U17: 14.5 | V17: 21 | W17: 36 | X17: 20 | Y17: 18 | Z17: 30 | AA17: 20 | AB17: 20 | AC17: 20 | AD17: 10 | AE17: 20 | AF17: 304.5 | AG17: 10 | AH17: راسب
A29: الدور الأول | E29: الدور الثانى | I29: رئيس كنترول صف أول | L29: رئيس لجنة النظام والمراقبة | P29: مدير المدرسة | T29: روجع فنياً | W29: روجع إدارياً | Z29: روجع فنياً | AC29: روجع إدارياً | AF29: يعتمد ، رئيس قسم الامتحانات
A30: راجع الإملاء | B30: راجع الكتابة | C30: أملاه | D30: كتبه | E30: راجع الإملاء | F30: راجع الكتابة | G30: أملاه | H30: كتبه | I30: محمود حسين الدالى | L30: احمد المتولى عبد العال | P30: احمد السيد الحسينى ............................... | T30: 1- ............................ | W30: 1- ............................ | Z30: 1- ............................ | AC30: 1- ............................ | AF30: …………………………...... مدير الخدمات التعليمية
T31: 2- ............................ | W31: 2- ............................ | Z31: 2- ............................ | AC31: 2- ............................ | AF31: ......................................

Sheet احصاء المتقدمين
A1: محافظة الشرقية
A2: مديرية التربية والتعليم
A3: إدارة كفر صقر التعليمية
A4: مدرسة كفر صقر الثانوية الزراعية
A5: احصاء عام بعدد طلاب الصف / الأول الزراعى والمتقدمين لامتحان الدور / الثانى
A6: للعــــــــام الدراسى 2018 / 2019 م
A7: النوعية | B7: متقدم | E7: حاضر | H7: غائب | K7: ناجح | N7: % للنجاح
B8: بنون | C8: بنات | D8: جملة | E8: بنون | F8: بنات | G8: جملة | H8: بنون | I8: بنات | J8: جملة | K8: بنون | L8: بنات | M8: جملة | N8: بنون | O8: بنات | P8: جملة
A9: منتظم | B9: =SUMPRODUCT((الرصد!$D$9:$D$1000="ذكر")*(الرصد!$BS$9:$BS$1000=$A$9)) -> 4 | C9: =SUMPRODUCT((الرصد!$D$9:$D$1000="انثى")*(الرصد!$BS$9:$BS$1000=$A$9)) -> 2 | D9: =SUM(B9:C9) -> 6 | E9: =B9-H9 -> 2 | F9: =C9-I9 -> 2 | G9: =SUM(E9:F9) -> 4 | H9: =SUMPRODUCT((الرصد!$D$9:$D$1000="ذكر")*(الرصد!$BS$9:$BS$1000=$A$9)*(الرصد!$BM$9:$BM$1000>0)) -> 2 | I9: =SUMPRODUCT((الرصد!$D$9:$D$1000="انثى")*(الرصد!$BS$9:$BS$1000=$A$9)*(الرصد!$BM$9:$BM$1000>0)) -> 0 | J9: =SUM(H9:I9) -> 2 | K9: =SUMPRODUCT((الرصد!$D$9:$D$1000="ذكر")*(الرصد!$BS$9:$BS$1000=$A$9)*(الرصد!AW$9:$AW$1000="ناجح")) -> 0 | L9: =SUMPRODUCT((الرصد!$D$9:$D$1000="انثى")*(الرصد!$BS$9:$BS$1000=$A$9)*(الرصد!$AW$9:AX$1000="ناجح")) -> 1 | M9: =SUM(K9:L9) -> 1 | N9: =IF(ISERR(K9/E9),"",(K9/E9)) -> 0 | O9: =IF(ISERR(L9/F9),"",(L9/F9)) -> 0.5 | P9: =M9/G9 -> 0.25
A10: عمال | B10: =SUMPRODUCT((الرصد!$D$9:$D$1000="ذكر")*(الرصد!$BS$9:$BS$1000=$A$10)) -> 3 | C10: =SUMPRODUCT((الرصد!$D$9:$D$1000="انثى")*(الرصد!$BS$9:$BS$1000=$A$10)) -> 1 | D10: =SUM(B10:C10) -> 4 | E10: =B10-H10 -> 2 | F10: =C10-I10 -> 1 | G10: =SUM(E10:F10) -> 3 | H10: =SUMPRODUCT((الرصد!$D$9:$D$1000="ذكر")*(الرصد!$BS$9:$BS$1000=$A$10)*(الرصد!$BM$9:$BM$1000>0)) -> 1 | I10: =SUMPRODUCT((الرصد!$D$9:$D$1000="انثى")*(الرصد!$BS$9:$BS$1000=$A$10)*(الرصد!$BM$9:$BM$1000>0)) -> 0 | J10: =SUM(H10:I10) -> 1 | K10: =SUMPRODUCT((الرصد!$D$9:$D$1000="ذكر")*(الرصد!$BS$9:$BS$1000=$A$10)*(الرصد!AW$9:$AW$1000="ناجح")) -> 0 | L10: =SUMPRODUCT((الرصد!$D$9:$D$1000="انثى")*(الرصد!$BS$9:$BS$1000=$A$10)*(الرصد!$AW$9:AX$1000="ناجح")) -> 1 | M10: =SUM(K10:L10) -> 1 | N10: =IF(ISERR(K10/E10),"",(K10/E10)) -> 0 | O10: =IF(ISERR(L10/F10),"",(L10/F10)) -> 1 | P10: =M10/G10 -> 0.3333333333
A11: رئيس لجنة النظام والمراقبة | L11: يعتمد ،
A12: مهندس / إسماعيل عبد اللطيف إبراهيم | L12: مدير المدرسة ورئيس عام الامتحان
L13: مهندس / عثمان محمد على هليل

Sheet نسب المواد
A1: محافظة الشرقية
A2: مديرية التربية والتعليم
A3: إدارة كفر صقر التعليمية
A4: مدرسة كفر صقر الثانوية الزراعية
A5: بيان احصائي بنسب النجاح في مواد الصف الأول الزراعي لامتحان الدور الثانى طلاب ( منتظمون )
A6: المجـــال - شعبة عامة - للعام الدراسى 2018 / 2019 م
A7: المــــــــــادة | B7: مقيد | C7: حاضر | D7: غائب | E7: ناجح | F7: راسب | G7: % للنجاح | H7: ملاحظات
A8: =الرصد!$FA$5 -> اللغة العربية | B8: =COUNTIF(الرصد!$BR$9:$BS$1000,"=منتظم") -> 6 | C8: =B8-D8 -> 6 | D8: =SUMPRODUCT((الرصد!$BS$9:$BS$1000="منتظم")*(الرصد!$FA$9:$FA$1000="غ")) -> 0 | E8: =C8-F8 -> 3 | F8: =SUMPRODUCT((الرصد!$BS$9:$BS$1000="منتظم")*(الرصد!$FA$9:$FA$1000="×")) -> 3 | G8: =IF(A8="","",IF(ISERR(E8/C8),"",(E8/C8))) -> 0.5
A9: =الرصد!$FB$5 -> اللغة الإنجليزية | B9: =COUNTIF(الرصد!$BR$9:$BS$1000,"=منتظم") -> 6 | C9: =B9-D9 -> 6 | D9: =SUMPRODUCT((الرصد!$BS$9:$BS$1000="منتظم")*(الرصد!$FB$9:$FB$1000="غ")) -> 0 | E9: =C9-F9 -> 3 | F9: =SUMPRODUCT((الرصد!$BS$9:$BS$1000="منتظم")*(الرصد!$FB$9:$FB$1000="×")) -> 3 | G9: 0.5
A10: =الرصد!$FC$5 -> حاسب آلى | B10: =COUNTIF(الرصد!$BR$9:$BS$1000,"=منتظم") -> 6 | C10: 6 | D10: =SUMPRODUCT((الرصد!$BS$9:$BS$1000="منتظم")*(الرصد!$FC$9:$FC$1000="غ")) -> 0 | E10: 3 | F10: =SUMPRODUCT((الرصد!$BS$9:$BS$1000="منتظم")*(الرصد!$FC$9:$FC$1000="×")) -> 3 | G10: 0.5
A11: =الرصد!$FD$5 -> محاصيل الحقل | B11: =COUNTIF(الرصد!$BR$9:$BS$1000,"=منتظم") -> 6 | C11: 6 | D11: =SUMPRODUCT((الرصد!$BS$9:$BS$1000="منتظم")*(الرصد!$FD$9:$FD$1000="غ")) -> 0 | E11: 3 | F11: =SUMPRODUCT((الرصد!$BS$9:$BS$1000="منتظم")*(الرصد!$FD$9:$FD$1000="×")) -> 3 | G11: 0.5
A12: =الرصد!$FE$5 -> بيولوجى | B12: =COUNTIF(الرصد!$BR$9:$BS$1000,"=منتظم") -> 6 | C12: 6 | D12: =SUMPRODUCT((الرصد!$BS$9:$BS$1000="منتظم")*(الرصد!$FE$9:$FE$1000="غ")) -> 0 | E12: 1 | F12: =SUMPRODUCT((الرصد!$BS$9:$BS$1000="منتظم")*(الرصد!$FE$9:$FE$1000="×")) -> 5 | G12: 0.1666666667
A13: =الرصد!$FF$5 -> ألبـــــــان | B13: =COUNTIF(الرصد!$BR$9:$BS$1000,"=منتظم") -> 6 | C13: 6 | D13: =SUMPRODUCT((الرصد!$BS$9:$BS$1000="منتظم")*(الرصد!$FF$9:$FF$1000="غ")) -> 0 | E13: 2 | F13: =SUMPRODUCT((الرصد!$BS$9:$BS$1000="منتظم")*(الرصد!$FF$9:$FF$1000="×")) -> 4 | G13: 0.3333333333
A14: =الرصد!$FG$5 -> تربية نحل | B14: =COUNTIF(الرصد!$BR$9:$BS$1000,"=منتظم") -> 6 | C14: 6 | D14: =SUMPRODUCT((الرصد!$BS$9:$BS$1000="منتظم")*(الرصد!$FG$9:$FG$1000="غ")) -> 0 | E14: 4 | F14: =SUMPRODUCT((الرصد!$BS$9:$BS$1000="منتظم")*(الرصد!$FG$9:$FG$1000="×")) -> 2 | G14: 0.6666666667
A15: =الرصد!$FH$5 -> اقتصاد زراعى | B15: =COUNTIF(الرصد!$BR$9:$BS$1000,"=منتظم") -> 6 | C15: 6 | D15: =SUMPRODUCT((الرصد!$BS$9:$BS$1000="منتظم")*(الرصد!$FH$9:$FH$1000="غ")) -> 0 | E15: 3 | F15: =SUMPRODUCT((الرصد!$BS$9:$BS$1000="منتظم")*(الرصد!$FH$9:$FH$1000="×")) -> 3 | G15: 0.5
A16: =الرصد!$FI$5 -> إرشاد زراعى | B16: =COUNTIF(الرصد!$BR$9:$BS$1000,"=منتظم") -> 6 | C16: 6 | D16: =SUMPRODUCT((الرصد!$BS$9:$BS$1000="منتظم")*(الرصد!$FI$9:$FI$1000="غ")) -> 0 | E16: 3 | F16: =SUMPRODUCT((الرصد!$BS$9:$BS$1000="منتظم")*(الرصد!$FI$9:$FI$1000="×")) -> 3 | G16: 0.5
A17: =الرصد!$FJ$5 -> فيزياء | B17: =COUNTIF(الرصد!$BR$9:$BS$1000,"=منتظم") -> 6 | C17: 6 | D17: =SUMPRODUCT((الرصد!$BS$9:$BS$1000="منتظم")*(الرصد!$FJ$9:$FJ$1000="غ")) -> 0 | E17: 6 | F17: =SUMPRODUCT((الرصد!$BS$9:$BS$1000="منتظم")*(الرصد!$FJ$9:$FJ$1000="×")) -> 0 | G17: 1
A18: =الرصد!$FK$5 -> كيمياء | B18: =COUNTIF(الرصد!$BR$9:$BS$1000,"=منتظم") -> 6 | C18: 6 | D18: =SUMPRODUCT((الرصد!$BS$9:$BS$1000="منتظم")*(الرصد!$FK$9:$FK$1000="غ")) -> 0 | E18: 3 | F18: =SUMPRODUCT((الرصد!$BS$9:$BS$1000="منتظم")*(الرصد!$FK$9:$FK$1000="×")) -> 3 | G18: 0.5
A19: =الرصد!$FL$5 -> وسائل تعليمية | B19: =COUNTIF(الرصد!$BR$9:$BS$1000,"=منتظم") -> 6 | C19: 6 | D19: =SUMPRODUCT((الرصد!$BS$9:$BS$1000="منتظم")*(الرصد!$FL$9:$FL$1000="غ")) -> 0 | E19: 3 | F19: =SUMPRODUCT((الرصد!$BS$9:$BS$1000="منتظم")*(الرصد!$FL$9:$FL$1000="×")) -> 3 | G19: 0.5
A20: =الرصد!$FM$5 -> عهد ومخازن | B20: =COUNTIF(الرصد!$BR$9:$BS$1000,"=منتظم") -> 6 | C20: 6 | D20: =SUMPRODUCT((الرصد!$BS$9:$BS$1000="منتظم")*(الرصد!$FM$9:$FM$1000="غ")) -> 0 | E20: 3 | F20: =SUMPRODUCT((الرصد!$BS$9:$BS$1000="منتظم")*(الرصد!$FM$9:$FM$1000="×")) -> 3 | G20: 0.5
A21: =الرصد!$FN$5 -> أمن وقائى | B21: =COUNTIF(الرصد!$BR$9:$BS$1000,"=منتظم") -> 6 | C21: 5 | D21: =SUMPRODUCT((الرصد!$BS$9:$BS$1000="منتظم")*(الرصد!$FN$9:$FN$1000="غ")) -> 1 | E21: 3 | F21: =SUMPRODUCT((الرصد!$BS$9:$BS$1000="منتظم")*(الرصد!$FN$9:$FN$1000="×")) -> 2 | G21: 0.6
A22: =الرصد!$FO$5 -> ورش وصيانة | B22: =COUNTIF(الرصد!$BR$9:$BS$1000,"=منتظم") -> 6 | C22: 5 | D22: =SUMPRODUCT((الرصد!$BS$9:$BS$1000="منتظم")*(الرصد!$FO$9:$FO$1000="غ")) -> 1 | E22: 4 | F22: =SUMPRODUCT((الرصد!$BS$9:$BS$1000="منتظم")*(الرصد!$FO$9:$FO$1000="×")) -> 1 | G22: 0.8
A23: =الرصد!$FQ$5 -> التربية الدينية | B23: =COUNTIF(الرصد!$BR$9:$BS$1000,"=منتظم") -> 6 | C23: 6 | D23: =SUMPRODUCT((الرصد!$BS$9:$BS$1000="منتظم")*(الرصد!$FQ$9:$FQ$1000="غ")) -> 0 | E23: 3 | F23: =SUMPRODUCT((الرصد!$BS$9:$BS$1000="منتظم")*(الرصد!$FQ$9:$FQ$1000="×")) -> 3 | G23: 0.5
A24: الاجمالي | B24: =SUM(B8:B23) -> 96 | C24: =SUM(C8:C23) -> 94 | D24: =SUM(D8:D23) -> 2 | E24: =SUM(E8:E23) -> 50 | F24: =SUM(F8:F23) -> 44
A25: رئيس لجنة النظام والمراقبة | F25: يعتمد ،
A26: مهندس / إسماعيل عبد اللطيف إبراهيم | F26: مدير المدرسة ورئيس عام الامتحان
F27: مهندس / عثمان محمد على هليل
A30: محافظة الشرقية
A31: مديرية التربية والتعليم
A32: إدارة كفر صقر التعليمية
A33: مدرسة كفر صقر الثانوية الزراعية
A34: بيان احصائي بنسب النجاح في مواد الصف الأول الزراعي لامتحان الدور الثانى طلاب ( عمال )
A35: المجـــال - شعبة عامة - للعام الدراسى 2018 / 2019 م
A36: المــــــــــادة | B36: مقيد | C36: حاضر | D36: غائب | E36: ناجح | F36: راسب | G36: % للنجاح | H36: ملاحظات
A37: =الرصد!$FA$5 -> اللغة العربية | B37: =COUNTIF(الرصد!$BR$9:$BS$1000,"=عمال") -> 4 | C37: =B37-D37 -> 3 | D37: =SUMPRODUCT((الرصد!$BS$9:$BS$1000="عمال")*(الرصد!$FA$9:$FA$1000="غ")) -> 1 | E37: =C37-F37 -> 3 | F37: =SUMPRODUCT((الرصد!$BS$9:$BS$1000="عمال")*(الرصد!$FA$9:$FA$1000="×")) -> 0 | G37: =IF(A37="","",IF(ISERR(E37/C37),"",(E37/C37))) -> 1
A38: =الرصد!$FB$5 -> اللغة الإنجليزية | B38: =COUNTIF(الرصد!$BR$9:$BS$1000,"=عمال") -> 4 | C38: =B38-D38 -> 4 | D38: =SUMPRODUCT((الرصد!$BS$9:$BS$1000="عمال")*(الرصد!$FB$9:$FB$1000="غ")) -> 0 | E38: =C38-F38 -> 4 | F38: =SUMPRODUCT((الرصد!$BS$9:$BS$1000="عمال")*(الرصد!$FB$9:$FB$1000="×")) -> 0 | G38: =IF(A38="","",IF(ISERR(E38/C38),"",(E38/C38))) -> 1
A39: =الرصد!$FC$5 -> حاسب آلى | B39: =COUNTIF(الرصد!$BR$9:$BS$1000,"=عمال") -> 4 | C39: 4 | D39: =SUMPRODUCT((الرصد!$BS$9:$BS$1000="عمال")*(الرصد!$FC$9:$FC$1000="غ")) -> 0 | E39: 4 | F39: =SUMPRODUCT((الرصد!$BS$9:$BS$1000="عمال")*(الرصد!$FC$9:$FC$1000="×")) -> 0 | G39: 1
A40: =الرصد!$FD$5 -> محاصيل الحقل | B40: =COUNTIF(الرصد!$BR$9:$BS$1000,"=عمال") -> 4 | C40: 4 | D40: =SUMPRODUCT((الرصد!$BS$9:$BS$1000="عمال")*(الرصد!$FD$9:$FD$1000="غ")) -> 0 | E40: 3 | F40: =SUMPRODUCT((الرصد!$BS$9:$BS$1000="عمال")*(الرصد!$FD$9:$FD$1000="×")) -> 1 | G40: 0.75
A41: =الرصد!$FE$5 -> بيولوجى | B41: =COUNTIF(الرصد!$BR$9:$BS$1000,"=عمال") -> 4 | C41: 4 | D41: =SUMPRODUCT((الرصد!$BS$9:$BS$1000="عمال")*(الرصد!$FE$9:$FE$1000="غ")) -> 0 | E41: 2 | F41: =SUMPRODUCT((الرصد!$BS$9:$BS$1000="عمال")*(الرصد!$FE$9:$FE$1000="×")) -> 2 | G41: 0.5
A42: =الرصد!$FF$5 -> ألبـــــــان | B42: =COUNTIF(الرصد!$BR$9:$BS$1000,"=عمال") -> 4 | C42: 4 | D42: =SUMPRODUCT((الرصد!$BS$9:$BS$1000="عمال")*(الرصد!$FF$9:$FF$1000="غ")) -> 0 | E42: 2 | F42: =SUMPRODUCT((الرصد!$BS$9:$BS$1000="عمال")*(الرصد!$FF$9:$FF$1000="×")) -> 2 | G42: 0.5
A43: =الرصد!$FG$5 -> تربية نحل | B43: =COUNTIF(الرصد!$BR$9:$BS$1000,"=عمال") -> 4 | C43: 4 | D43: =SUMPRODUCT((الرصد!$BS$9:$BS$1000="عمال")*(الرصد!$FG$9:$FG$1000="غ")) -> 0 | E43: 3 | F43: =SUMPRODUCT((الرصد!$BS$9:$BS$1000="عمال")*(الرصد!$FG$9:$FG$1000="×")) -> 1 | G43: 0.75
A44: =الرصد!$FH$5 -> اقتصاد زراعى | B44: =COUNTIF(الرصد!$BR$9:$BS$1000,"=عمال") -> 4 | C44: 4 | D44: =SUMPRODUCT((الرصد!$BS$9:$BS$1000="عمال")*(الرصد!$FH$9:$FH$1000="غ")) -> 0 | E44: 4 | F44: =SUMPRODUCT((الرصد!$BS$9:$BS$1000="عمال")*(الرصد!$FH$9:$FH$1000="×")) -> 0 | G44: 1
A45: =الرصد!$FI$5 -> إرشاد زراعى | B45: =COUNTIF(الرصد!$BR$9:$BS$1000,"=عمال") -> 4 | C45: 4 | D45: =SUMPRODUCT((الرصد!$BS$9:$BS$1000="عمال")*(الرصد!$FI$9:$FI$1000="غ")) -> 0 | E45: 2 | F45: =SUMPRODUCT((الرصد!$BS$9:$BS$1000="عمال")*(الرصد!$FI$9:$FI$1000="×")) -> 2 | G45: 0.5
A46: =الرصد!$FJ$5 -> فيزياء | B46: =COUNTIF(الرصد!$BR$9:$BS$1000,"=عمال") -> 4 | C46: 4 | D46: =SUMPRODUCT((الرصد!$BS$9:$BS$1000="عمال")*(الرصد!$FJ$9:$FJ$1000="غ")) -> 0 | E46: 4 | F46: =SUMPRODUCT((الرصد!$BS$9:$BS$1000="عمال")*(الرصد!$FJ$9:$FJ$1000="×")) -> 0 | G46: 1
A47: =الرصد!$FK$5 -> كيمياء | B47: =COUNTIF(الرصد!$BR$9:$BS$1000,"=عمال") -> 4 | C47: 4 | D47: =SUMPRODUCT((الرصد!$BS$9:$BS$1000="عمال")*(الرصد!$FK$9:$FK$1000="غ")) -> 0 | E47: 3 | F47: =SUMPRODUCT((الرصد!$BS$9:$BS$1000="عمال")*(الرصد!$FK$9:$FK$1000="×")) -> 1 | G47: 0.75
A48: =الرصد!$FL$5 -> وسائل تعليمية | B48: =COUNTIF(الرصد!$BR$9:$BS$1000,"=عمال") -> 4 | C48: 4 | D48: =SUMPRODUCT((الرصد!$BS$9:$BS$1000="عمال")*(الرصد!$FL$9:$FL$1000="غ")) -> 0 | E48: 3 | F48: =SUMPRODUCT((الرصد!$BS$9:$BS$1000="عمال")*(الرصد!$FL$9:$FL$1000="×")) -> 1 | G48: 0.75
A49: =الرصد!$FM$5 -> عهد ومخازن | B49: =COUNTIF(الرصد!$BR$9:$BS$1000,"=عمال") -> 4 | C49: 4 | D49: =SUMPRODUCT((الرصد!$BS$9:$BS$1000="عمال")*(الرصد!$FM$9:$FM$1000="غ")) -> 0 | E49: 3 | F49: =SUMPRODUCT((الرصد!$BS$9:$BS$1000="عمال")*(الرصد!$FM$9:$FM$1000="×")) -> 1 | G49: 0.75
A50: =الرصد!$FN$5 -> أمن وقائى | B50: =COUNTIF(الرصد!$BR$9:$BS$1000,"=عمال") -> 4 | C50: 4 | D50: =SUMPRODUCT((الرصد!$BS$9:$BS$1000="عمال")*(الرصد!$FN$9:$FN$1000="غ")) -> 0 | E50: 3 | F50: =SUMPRODUCT((الرصد!$BS$9:$BS$1000="عمال")*(الرصد!$FN$9:$FN$1000="×")) -> 1 | G50: 0.75
A51: =الرصد!$FO$5 -> ورش وصيانة | B51: =COUNTIF(الرصد!$BR$9:$BS$1000,"=عمال") -> 4 | C51: 4 | D51: =SUMPRODUCT((الرصد!$BS$9:$BS$1000="عمال")*(الرصد!$FO$9:$FO$1000="غ")) -> 0 | E51: 3 | F51: =SUMPRODUCT((الرصد!$BS$9:$BS$1000="عمال")*(الرصد!$FO$9:$FO$1000="×")) -> 1 | G51: 0.75
A52: =الرصد!$FQ$5 -> التربية الدينية | B52: =COUNTIF(الرصد!$BR$9:$BS$1000,"=عمال") -> 4 | C52: 4 | D52: =SUMPRODUCT((الرصد!$BS$9:$BS$1000="عمال")*(الرصد!$FQ$9:$FQ$1000="غ")) -> 0 | E52: 3 | F52: =SUMPRODUCT((الرصد!$BS$9:$BS$1000="عمال")*(الرصد!$FQ$9:$FQ$1000="×")) -> 1 | G52: 0.75
A53: الاجمالي | B53: =SUM(B37:B52) -> 64 | C53: =SUM(C37:C52) -> 63 | D53: 1 | E53: 49 | F53: 14
A54: رئيس لجنة النظام والمراقبة | F54: يعتمد ،
A55: مهندس / إسماعيل عبد اللطيف إبراهيم | F55: مدير المدرسة ورئيس عام الامتحان
F56: مهندس / عثمان محمد على هليل

Sheet filter (hidden)
A1: =MAX(A4:A400) -> 10
A4: =IF(B4="","",1) -> 1 | B4: 1 | C4: 501 | D4: اسماء عوض ابراهيم احمد زغلول | E4: انثى | F4: منقول | G4: 30203011216385 | H4: 37316 | I4: 1 | J4: 3 | K4: 2002 | L4: 0 | M4: 7 | N4: 16 | P4: مصرية | Q4: 25 | R4: 20 | S4: 10 | T4: 10 | U4: 10 | V4: 20 | W4: 7.5 | X4: 7.5 | Y4: 15 | Z4: 10 | AA4: 11 | AB4: 21 | AC4: 7.5 | AD4: 28.5 | AE4: 36 | AF4: 20 | AG4: 20 | AH4: 15 | AI4: 15 | AJ4: 30 | AK4: 10 | AL4: 10 | AM4: 20 | AN4: 10 | AO4: 10 | AP4: 20 | AQ4: 10 | AR4: 10 | AS4: 20 | AT4: 10 | AU4: 20 | AV4: 307 | AW4: 10 | AX4: ناجح | BN4: 0 | BT4: منتظم | FB4: 25 | FC4: 20 | FD4: 10 | FE4: 20 | FF4: 15 | FG4: 21 | FH4: 36 | FI4: 20 | FJ4: 20 | FK4: 30 | FL4: 20 | FM4: 20 | FN4: 20 | FO4: 10 | FP4: 20 | FQ4: 307 | FR4: 10
A5: =IF(B5="","",MAX($A$3:A4)+1) -> 2 | B5: 2 | C5: 502 | D5: بسمه محمد عبد اللطيف السعيد | E5: انثى | F5: منقول | G5: 30111011202722 | H5: 37196 | I5: 1 | J5: 11 | K5: 2001 | L5: 0 | M5: 11 | N5: 16 | P5: مصرية | Q5: 20 | R5: 17.5 | S5: 6.5 | T5: 9 | U5: 9 | V5: 18 | W5: 7 | X5: 7.5 | Y5: 14.5 | Z5: 9 | AA5: 12 | AB5: 21 | AC5: 11 | AD5: 32 | AE5: 43 | AF5: 17.5 | AG5: 15 | AH5: 11 | AI5: 12 | AJ5: 23 | AK5: 9 | AL5: 9 | AM5: 18 | AN5: 9 | AO5: 9 | AP5: 18 | AQ5: 9 | AR5: 9 | AS5: 18 | AT5: 7.5 | AU5: 18 | AV5: 275.5 | AW5: 8.5 | AX5: راسب | BN5: 0 | BT5: منتظم | FB5: × | FC5: × | FD5: × | FE5: × | FF5: × | FG5: × | FH5: 43 | FI5: × | FJ5: × | FK5: 23 | FL5: × | FM5: × | FN5: × | FO5: × | FP5: × | FQ5: × | FR5: ×
A6: =IF(B6="","",MAX($A$3:A5)+1) -> 3 | B6: 3 | C6: 503 | D6: ضحى مصطفى عبد الهادى ابراهيم | E6: انثى | F6: عمال | G6: 30209151206086 | H6: 37514 | I6: 15 | J6: 9 | K6: 2002 | L6: 16 | M6: 0 | N6: 16 | P6: مصرية | Q6: 50 | R6: 40 | S6: 20 | T6: 20 | U6: 20 | V6: 40 | W6: 15 | X6: 15 | Y6: 30 | Z6: 20 | AA6: 20 | AB6: 40 | AC6: 15 | AD6: 15 | AE6: 30 | AF6: 40 | AG6: 40 | AH6: 30 | AI6: 30 | AJ6: 60 | AK6: 20 | AL6: 20 | AM6: 40 | AN6: 20 | AO6: 20 | AP6: 40 | AQ6: 20 | AR6: 20 | AS6: 40 | AT6: 20 | AU6: 40 | AV6: 570 | AW6: 20 | AX6: ناجح | BN6: 0 | BT6: عمال | FB6: 50 | FC6: 40 | FD6: 20 | FE6: 40 | FF6: 30 | FG6: 40 | FH6: 30 | FI6: 40 | FJ6: 40 | FK6: 60 | FL6: 40 | FM6: 40 | FN6: 40 | FO6: 20 | FP6: 40 | FQ6: 570 | FR6: 20
A7: =IF(B7="","",MAX($A$3:A6)+1) -> 4 | B7: 4 | C7: 504 | D7: اسلام محمد عاشور احمد محمد | E7: ذكر | F7: منقول | G7: 30204011216179 | H7: 37347 | I7: 1 | J7: 4 | K7: 2002 | L7: 0 | M7: 6 | N7: 16 | P7: مصرى | Q7: 20 | R7: 19 | S7: 9 | T7: 9 | U7: 9 | V7: 18 | W7: 7 | X7: 7.5 | Y7: 14.5 | Z7: 9 | AA7: 11 | AB7: 20 | AC7: 7 | AD7: 27 | AE7: 34 | AF7: 19 | AG7: 25 | AH7: 14 | AI7: 12 | AJ7: 26 | AK7: 9 | AL7: 9 | AM7: 18 | AN7: 9 | AO7: 9 | AP7: 18 | AQ7: 9 | AR7: 9 | AS7: 18 | AT7: غ | AU7: 20 | AV7: 278.5 | AW7: 1 | AX7: راسب | BN7: 1 | BT7: منتظم | FB7: × | FC7: × | FD7: × | FE7: × | FF7: × | FG7: × | FH7: × | FI7: × | FJ7: 25 | FK7: 26 | FL7: × | FM7: × | FN7: × | FO7: غ | FP7: 20 | FQ7: × | FR7: ×
A8: =IF(B8="","",MAX($A$3:A7)+1) -> 5 | B8: 5 | C8: 505 | D8: بركات عماد عبد الرحمن بركات | E8: ذكر | F8: منقول | G8: 30206101200258 | H8: 37417 | I8: 10 | J8: 6 | K8: 2002 | L8: 21 | M8: 3 | N8: 16 | P8: مصرى | Q8: 25 | R8: 20 | S8: 10 | T8: 10 | U8: 10 | V8: 20 | W8: 7.5 | X8: 7 | Y8: 14.5 | Z8: 10 | AA8: 4 | AB8: 14 | AC8: 7.5 | AD8: 21.5 | AE8: 29 | AF8: 20 | AG8: 25 | AH8: 15 | AI8: 15 | AJ8: 30 | AK8: 10 | AL8: 10 | AM8: 20 | AN8: 10 | AO8: 10 | AP8: 20 | AQ8: 10 | AR8: 10 | AS8: 20 | AT8: 10 | AU8: 20 | AV8: 297.5 | AW8: 10 | AX8: راسب | BN8: 0 | BT8: منتظم | FB8: 25 | FC8: 20 | FD8: 10 | FE8: 20 | FF8: × | FG8: × | FH8: 29 | FI8: 20 | FJ8: 25 | FK8: 30 | FL8: 20 | FM8: 20 | FN8: 20 | FO8: 10 | FP8: 20 | FQ8: × | FR8: 10
A9: =IF(B9="","",MAX($A$3:A8)+1) -> 6 | B9: 6 | C9: 506 | D9: عبد الله فيصل خليل متولي عبده | E9: ذكر | F9: عمال | G9: 30301011239131 | H9: 37622 | I9: 1 | J9: 1 | K9: 2003 | L9: 0 | M9: 9 | N9: 15 | P9: مصرى | Q9: 25 | R9: 20 | S9: 10 | T9: 10 | U9: 10 | V9: 20 | W9: 7.5 | X9: 7.5 | Y9: 15 | Z9: 10 | AA9: 6 | AB9: 16 | AC9: 7.5 | AD9: 23.5 | AE9: 31 | AF9: 20 | AG9: 23 | AH9: 15 | AI9: 15 | AJ9: 30 | AK9: 10 | AL9: 10 | AM9: 20 | AN9: 10 | AO9: 10 | AP9: 20 | AQ9: 10 | AR9: 10 | AS9: 20 | AT9: 10 | AU9: 20 | AV9: 300 | AW9: 10 | AX9: راسب | BN9: 0 | BT9: عمال | FB9: 25 | FC9: 20 | FD9: 10 | FE9: 20 | FF9: 15 | FG9: × | FH9: 31 | FI9: 20 | FJ9: 23 | FK9: 30 | FL9: 20 | FM9: 20 | FN9: 20 | FO9: 10 | FP9: 20 | FQ9: × | FR9: 10
A10: =IF(B10="","",MAX($A$3:A9)+1) -> 7 | B10: 7 | C10: 507 | D10: على حسن محمد على محمد | E10: ذكر | F10: منقول | G10: 30301251202251 | H10: 37646 | I10: 25 | J10: 1 | K10: 2003 | L10: 6 | M10: 8 | N10: 15 | P10: مصرى | Q10: 20 | R10: 17.5 | S10: 8.5 | T10: 9 | U10: 9 | V10: 18 | W10: 7 | X10: 7.5 | Y10: 14.5 | Z10: 9 | AA10: 11 | AB10: 20 | AC10: 7 | AD10: 27 | AE10: 34 | AF10: 17.5 | AG10: 14 | AH10: 13 | AI10: 14 | AJ10: 27 | AK10: 9 | AL10: 9 | AM10: 18 | AN10: 9 | AO10: 9 | AP10: 18 | AQ10: 9 | AR10: 9 | AS10: 18 | AT10: 9 | AU10: غ | AV10: 254 | AW10: 6.5 | AX10: راسب | BN10: 1 | BT10: منتظم | FB10: × | FC10: × | FD10: × | FE10: × | FF10: × | FG10: × | FH10: × | FI10: × | FJ10: × | FK10: 27 | FL10: × | FM10: × | FN10: × | FO10: × | FP10: غ | FQ10: × | FR10: ×
A11: =IF(B11="","",MAX($A$3:A10)+1) -> 8 | B11: 8 | C11: 508 | D11: محمد عصام نبيل عبدالعليم السعيد | E11: ذكر | F11: منقول | G11: 30201011226698 | H11: 37257 | I11: 1 | J11: 1 | K11: 2002 | L11: 0 | M11: 9 | N11: 16 | P11: مصرى | Q11: 25 | R11: 20 | S11: 10 | T11: 10 | U11: 10 | V11: 20 | W11: 7.5 | X11: 7 | Y11: 14.5 | Z11: 10 | AA11: 15 | AB11: 25 | AC11: 7.5 | AD11: 32.5 | AE11: 40 | AF11: 20 | AG11: 15 | AH11: 15 | AI11: 15 | AJ11: 30 | AK11: 10 | AL11: 10 | AM11: 20 | AN11: 10 | AO11: 10 | AP11: 20 | AQ11: 10 | AR11: 10 | AS11: 20 | AT11: 10 | AU11: 20 | AV11: 309.5 | AW11: 10 | AX11: راسب | BN11: 0 | BT11: منتظم | FB11: 25 | FC11: 20 | FD11: 10 | FE11: 20 | FF11: × | FG11: 25 | FH11: 40 | FI11: 20 | FJ11: × | FK11: 30 | FL11: 20 | FM11: 20 | FN11: 20 | FO11: 10 | FP11: 20 | FQ11: × | FR11: 10
A12: =IF(B12="","",MAX($A$3:A11)+1) -> 9 | B12: 9 | C12: 509 | D12: محمود رضا متولى عبد المنعم محمود | E12: ذكر | F12: عمال | G12: 30301041201376 | H12: 37625 | I12: 4 | J12: 1 | K12: 2003 | L12: 27 | M12: 8 | N12: 15 | P12: مصرى | Q12: غ | R12: 20 | S12: 10 | T12: 5 | U12: 5 | V12: 10 | W12: 7 | X12: 7.5 | Y12: 14.5 | Z12: 5 | AA12: 12 | AB12: 17 | AC12: 7 | AD12: 24 | AE12: 31 | AF12: 20 | AG12: 14 | AH12: 15 | AI12: 15 | AJ12: 30 | AK12: 5 | AL12: 5 | AM12: 10 | AN12: 5 | AO12: 5 | AP12: 10 | AQ12: 5 | AR12: 5 | AS12: 10 | AT12: 8 | AU12: 17 | AV12: 221.5 | AW12: 8 | AX12: راسب | BN12: 1 | BT12: عمال | FB12: غ | FC12: 20 | FD12: 10 | FE12: × | FF12: × | FG12: × | FH12: × | FI12: 20 | FJ12: × | FK12: 30 | FL12: × | FM12: × | FN12: × | FO12: × | FP12: × | FQ12: × | FR12: ×
A13: =IF(B13="","",MAX($A$3:A12)+1) -> 10 | B13: 10 | C13: 510 | D13: مسعد صلاح عبد الله عباس | E13: ذكر | F13: عمال | G13: 30202071202972 | H13: 37294 | I13: 7 | J13: 2 | K13: 2002 | L13: 24 | M13: 7 | N13: 16 | P13: مصرى | Q13: 25 | R13: 20 | S13: 10 | T13: 10 | U13: 10 | V13: 20 | W13: 7.5 | X13: 7 | Y13: 14.5 | Z13: 10 | AA13: 11 | AB13: 21 | AC13: 7.5 | AD13: 28.5 | AE13: 36 | AF13: 20 | AG13: 18 | AH13: 15 | AI13: 15 | AJ13: 30 | AK13: 10 | AL13: 10 | AM13: 20 | AN13: 10 | AO13: 10 | AP13: 20 | AQ13: 10 | AR13: 10 | AS13: 20 | AT13: 10 | AU13: 20 | AV13: 304.5 | AW13: 10 | AX13: راسب | BN13: 0 | BT13: عمال | FB13: 25 | FC13: 20 | FD13: 10 | FE13: 20 | FF13: × | FG13: 21 | FH13: 36 | FI13: 20 | FJ13: × | FK13: 30 | FL13: 20 | FM13: 20 | FN13: 20 | FO13: 10 | FP13: 20 | FQ13: × | FR13: 10
A14: =IF(B14="","",MAX($A$3:A13)+1) -> 
A15: =IF(B15="","",MAX($A$3:A14)+1) -> 
A16: =IF(B16="","",MAX($A$3:A15)+1) -> 
A17: =IF(B17="","",MAX($A$3:A16)+1) -> 
A18: =IF(B18="","",MAX($A$3:A17)+1) -> 
A19: =IF(B19="","",MAX($A$3:A18)+1) -> 
A20: =IF(B20="","",MAX($A$3:A19)+1) -> 
A21: =IF(B21="","",MAX($A$3:A20)+1) -> 
A22: =IF(B22="","",MAX($A$3:A21)+1) -> 
A23: =IF(B23="","",MAX($A$3:A22)+1) -> 
A24: =IF(B24="","",MAX($A$3:A23)+1) -> 
A25: =IF(B25="","",MAX($A$3:A24)+1) -> 
A26: =IF(B26="","",MAX($A$3:A25)+1) -> 
A27: =IF(B27="","",MAX($A$3:A26)+1) -> 
A28: =IF(B28="","",MAX($A$3:A27)+1) -> 
A29: =IF(B29="","",MAX($A$3:A28)+1) -> 
A30: =IF(B30="","",MAX($A$3:A29)+1) -> 
A31: =IF(B31="","",MAX($A$3:A30)+1) -> 
A32: =IF(B32="","",MAX($A$3:A31)+1) -> 
A33: =IF(B33="","",MAX($A$3:A32)+1) -> 
A34: =IF(B34="","",MAX($A$3:A33)+1) -> 
A35: =IF(B35="","",MAX($A$3:A34)+1) -> 
A36: =IF(B36="","",MAX($A$3:A35)+1) -> 
A37: =IF(B37="","",MAX($A$3:A36)+1) -> 
A38: =IF(B38="","",MAX($A$3:A37)+1) -> 
A39: =IF(B39="","",MAX($A$3:A38)+1) -> 
A40: =IF(B40="","",MAX($A$3:A39)+1) -> 
A41: =IF(B41="","",MAX($A$3:A40)+1) -> 
A42: =IF(B42="","",MAX($A$3:A41)+1) -> 
A43: =IF(B43="","",MAX($A$3:A42)+1) -> 
A44: =IF(B44="","",MAX($A$3:A43)+1) -> 
A45: =IF(B45="","",MAX($A$3:A44)+1) -> 
A46: =IF(B46="","",MAX($A$3:A45)+1) -> 
A47: =IF(B47="","",MAX($A$3:A46)+1) -> 
A48: =IF(B48="","",MAX($A$3:A47)+1) -> 
A49: =IF(B49="","",MAX($A$3:A48)+1) -> 
A50: =IF(B50="","",MAX($A$3:A49)+1) -> 
A51: =IF(B51="","",MAX($A$3:A50)+1) -> 
A52: =IF(B52="","",MAX($A$3:A51)+1) -> 
A53: =IF(B53="","",MAX($A$3:A52)+1) -> 
A54: =IF(B54="","",MAX($A$3:A53)+1) -> 
A55: =IF(B55="","",MAX($A$3:A54)+1) -> 
A56: =IF(B56="","",MAX($A$3:A55)+1) -> 
A57: =IF(B57="","",MAX($A$3:A56)+1) -> 
A58: =IF(B58="","",MAX($A$3:A57)+1) -> 
A59: =IF(B59="","",MAX($A$3:A58)+1) -> 
A60: =IF(B60="","",MAX($A$3:A59)+1) -> 
A61: =IF(B61="","",MAX($A$3:A60)+1) -> 
A62: =IF(B62="","",MAX($A$3:A61)+1) -> 
A63: =IF(B63="","",MAX($A$3:A62)+1) -> 
A64: =IF(B64="","",MAX($A$3:A63)+1) -> 
A65: =IF(B65="","",MAX($A$3:A64)+1) -> 
A66: =IF(B66="","",MAX($A$3:A65)+1) -> 
A67: =IF(B67="","",MAX($A$3:A66)+1) -> 
A68: =IF(B68="","",MAX($A$3:A67)+1) -> 
A69: =IF(B69="","",MAX($A$3:A68)+1) -> 
A70: =IF(B70="","",MAX($A$3:A69)+1) -> 
A71: =IF(B71="","",MAX($A$3:A70)+1) -> 
A72: =IF(B72="","",MAX($A$3:A71)+1) -> 
A73: =IF(B73="","",MAX($A$3:A72)+1) -> 
A74: =IF(B74="","",MAX($A$3:A73)+1) -> 
A75: =IF(B75="","",MAX($A$3:A74)+1) -> 
A76: =IF(B76="","",MAX($A$3:A75)+1) -> 
A77: =IF(B77="","",MAX($A$3:A76)+1) -> 
A78: =IF(B78="","",MAX($A$3:A77)+1) -> 
A79: =IF(B79="","",MAX($A$3:A78)+1) -> 
A80: =IF(B80="","",MAX($A$3:A79)+1) -> 
A81: =IF(B81="","",MAX($A$3:A80)+1) -> 
A82: =IF(B82="","",MAX($A$3:A81)+1) -> 
A83: =IF(B83="","",MAX($A$3:A82)+1) -> 
A84: =IF(B84="","",MAX($A$3:A83)+1) -> 
A85: =IF(B85="","",MAX($A$3:A84)+1) -> 
A86: =IF(B86="","",MAX($A$3:A85)+1) -> 
A87: =IF(B87="","",MAX($A$3:A86)+1) -> 
A88: =IF(B88="","",MAX($A$3:A87)+1) -> 
A89: =IF(B89="","",MAX($A$3:A88)+1) -> 
A90: =IF(B90="","",MAX($A$3:A89)+1) -> 
A91: =IF(B91="","",MAX($A$3:A90)+1) -> 
A92: =IF(B92="","",MAX($A$3:A91)+1) -> 
A93: =IF(B93="","",MAX($A$3:A92)+1) -> 
A94: =IF(B94="","",MAX($A$3:A93)+1) -> 
A95: =IF(B95="","",MAX($A$3:A94)+1) -> 
A96: =IF(B96="","",MAX($A$3:A95)+1) -> 
A97: =IF(B97="","",MAX($A$3:A96)+1) -> 
A98: =IF(B98="","",MAX($A$3:A97)+1) -> 
A99: =IF(B99="","",MAX($A$3:A98)+1) -> 
A100: =IF(B100="","",MAX($A$3:A99)+1) -> 
A101: =IF(B101="","",MAX($A$3:A100)+1) -> 
A102: =IF(B102="","",MAX($A$3:A101)+1) -> 
A103: =IF(B103="","",MAX($A$3:A102)+1) -> 
A104: =IF(B104="","",MAX($A$3:A103)+1) -> 
A105: =IF(B105="","",MAX($A$3:A104)+1) -> 
A106: =IF(B106="","",MAX($A$3:A105)+1) -> 
A107: =IF(B107="","",MAX($A$3:A106)+1) -> 
A108: =IF(B108="","",MAX($A$3:A107)+1) -> 
A109: =IF(B109="","",MAX($A$3:A108)+1) -> 
A110: =IF(B110="","",MAX($A$3:A109)+1) -> 
A111: =IF(B111="","",MAX($A$3:A110)+1) -> 
A112: =IF(B112="","",MAX($A$3:A111)+1) -> 
A113: =IF(B113="","",MAX($A$3:A112)+1) -> 
A114: =IF(B114="","",MAX($A$3:A113)+1) -> 
A115: =IF(B115="","",MAX($A$3:A114)+1) -> 
A116: =IF(B116="","",MAX($A$3:A115)+1) -> 
A117: =IF(B117="","",MAX($A$3:A116)+1) -> 
A118: =IF(B118="","",MAX($A$3:A117)+1) -> 
A119: =IF(B119="","",MAX($A$3:A118)+1) -> 
A120: =IF(B120="","",MAX($A$3:A119)+1) -> 
A121: =IF(B121="","",MAX($A$3:A120)+1) -> 
A122: =IF(B122="","",MAX($A$3:A121)+1) -> 
A123: =IF(B123="","",MAX($A$3:A122)+1) -> 
A124: =IF(B124="","",MAX($A$3:A123)+1) -> 
A125: =IF(B125="","",MAX($A$3:A124)+1) -> 
A126: =IF(B126="","",MAX($A$3:A125)+1) -> 
A127: =IF(B127="","",MAX($A$3:A126)+1) -> 
A128: =IF(B128="","",MAX($A$3:A127)+1) -> 
A129: =IF(B129="","",MAX($A$3:A128)+1) -> 
A130: =IF(B130="","",MAX($A$3:A129)+1) -> 
A131: =IF(B131="","",MAX($A$3:A130)+1) -> 
A132: =IF(B132="","",MAX($A$3:A131)+1) -> 
A133: =IF(B133="","",MAX($A$3:A132)+1) -> 
A134: =IF(B134="","",MAX($A$3:A133)+1) -> 
A135: =IF(B135="","",MAX($A$3:A134)+1) -> 
A136: =IF(B136="","",MAX($A$3:A135)+1) -> 
A137: =IF(B137="","",MAX($A$3:A136)+1) -> 
A138: =IF(B138="","",MAX($A$3:A137)+1) -> 
A139: =IF(B139="","",MAX($A$3:A138)+1) -> 
A140: =IF(B140="","",MAX($A$3:A139)+1) -> 
A141: =IF(B141="","",MAX($A$3:A140)+1) -> 
A142: =IF(B142="","",MAX($A$3:A141)+1) -> 
A143: =IF(B143="","",MAX($A$3:A142)+1) -> 
A144: =IF(B144="","",MAX($A$3:A143)+1) -> 
A145: =IF(B145="","",MAX($A$3:A144)+1) -> 
A146: =IF(B146="","",MAX($A$3:A145)+1) -> 
A147: =IF(B147="","",MAX($A$3:A146)+1) -> 
A148: =IF(B148="","",MAX($A$3:A147)+1) -> 
A149: =IF(B149="","",MAX($A$3:A148)+1) -> 
A150: =IF(B150="","",MAX($A$3:A149)+1) -> 
A151: =IF(B151="","",MAX($A$3:A150)+1) -> 
A152: =IF(B152="","",MAX($A$3:A151)+1) -> 
A153: =IF(B153="","",MAX($A$3:A152)+1) -> 
A154: =IF(B154="","",MAX($A$3:A153)+1) -> 
A155: =IF(B155="","",MAX($A$3:A154)+1) -> 
A156: =IF(B156="","",MAX($A$3:A155)+1) -> 
A157: =IF(B157="","",MAX($A$3:A156)+1) -> 
A158: =IF(B158="","",MAX($A$3:A157)+1) -> 
A159: =IF(B159="","",MAX($A$3:A158)+1) -> 
A160: =IF(B160="","",MAX($A$3:A159)+1) -> 
A161: =IF(B161="","",MAX($A$3:A160)+1) -> 
A162: =IF(B162="","",MAX($A$3:A161)+1) -> 
A163: =IF(B163="","",MAX($A$3:A162)+1) -> 
A164: =IF(B164="","",MAX($A$3:A163)+1) -> 
A165: =IF(B165="","",MAX($A$3:A164)+1) -> 
A166: =IF(B166="","",MAX($A$3:A165)+1) -> 
A167: =IF(B167="","",MAX($A$3:A166)+1) -> 
A168: =IF(B168="","",MAX($A$3:A167)+1) -> 
A169: =IF(B169="","",MAX($A$3:A168)+1) -> 
A170: =IF(B170="","",MAX($A$3:A169)+1) -> 
A171: =IF(B171="","",MAX($A$3:A170)+1) -> 
A172: =IF(B172="","",MAX($A$3:A171)+1) -> 
A173: =IF(B173="","",MAX($A$3:A172)+1) -> 
A174: =IF(B174="","",MAX($A$3:A173)+1) -> 
A175: =IF(B175="","",MAX($A$3:A174)+1) -> 
A176: =IF(B176="","",MAX($A$3:A175)+1) -> 
A177: =IF(B177="","",MAX($A$3:A176)+1) -> 
A178: =IF(B178="","",MAX($A$3:A177)+1) -> 
A179: =IF(B179="","",MAX($A$3:A178)+1) -> 
A180: =IF(B180="","",MAX($A$3:A179)+1) -> 
A181: =IF(B181="","",MAX($A$3:A180)+1) -> 
A182: =IF(B182="","",MAX($A$3:A181)+1) -> 
A183: =IF(B183="","",MAX($A$3:A182)+1) -> 
A184: =IF(B184="","",MAX($A$3:A183)+1) -> 
A185: =IF(B185="","",MAX($A$3:A184)+1) -> 
A186: =IF(B186="","",MAX($A$3:A185)+1) -> 
A187: =IF(B187="","",MAX($A$3:A186)+1) -> 
A188: =IF(B188="","",MAX($A$3:A187)+1) -> 
A189: =IF(B189="","",MAX($A$3:A188)+1) -> 
A190: =IF(B190="","",MAX($A$3:A189)+1) -> 
A191: =IF(B191="","",MAX($A$3:A190)+1) -> 
A192: =IF(B192="","",MAX($A$3:A191)+1) -> 
A193: =IF(B193="","",MAX($A$3:A192)+1) -> 
A194: =IF(B194="","",MAX($A$3:A193)+1) -> 
A195: =IF(B195="","",MAX($A$3:A194)+1) -> 
A196: =IF(B196="","",MAX($A$3:A195)+1) -> 
A197: =IF(B197="","",MAX($A$3:A196)+1) -> 
A198: =IF(B198="","",MAX($A$3:A197)+1) -> 
A199: =IF(B199="","",MAX($A$3:A198)+1) -> 
A200: =IF(B200="","",MAX($A$3:A199)+1) -> 
A201: =IF(B201="","",MAX($A$3:A200)+1) -> 
A202: =IF(B202="","",MAX($A$3:A201)+1) -> 
... 360 more rows
